Workbook

Sheet hist. data
A1: minimum | B1: =MIN(B35:OFFSET(B35,(COUNTA(B35:B7000)-1),0)) -> 1.53 | C1: =MIN(C36:OFFSET(C36,(COUNTA(C36:C7000)-1),0)) -> -1.76 | D1: =MIN(D36:OFFSET(D36,(COUNTA(D36:D7000)-1),0)) -> 0 | E1: =MIN(E36:OFFSET(E36,(COUNTA(E36:E7000)-1),0)) -> 0.001248266297 | F1: =MIN(F36:OFFSET(F36,(COUNTA(F36:F7000)-1),0)) -> -0.3775303308 | G1: =MIN(G36:OFFSET(G36,(COUNTA(G36:G7000)-1),0)) -> 0 | H1: =MIN(H36:OFFSET(H36,(COUNTA(H36:H7000)-1),0)) -> 0.0004174475873 | I1: =MIN(I35:OFFSET(I35,(COUNTA(I35:I7000)-1),0)) -> -4.179902451
A2: 10-percentile | B2: =PERCENTILE(B35:OFFSET(B35,(COUNTA(B35:B7000)-1),0),0.1) -> 3.014 | C2: =PERCENTILE(C36:OFFSET(C36,(COUNTA(C36:C7000)-1),0),0.1) -> -0.28 | D2: =PERCENTILE(D36:OFFSET(D36,(COUNTA(D36:D7000)-1),0),0.1) -> 0.02 | E2: =PERCENTILE(E36:OFFSET(E3,(COUNTA(E36:E7000)-1),0),0.1) -> 0.0212482663 | F2: =PERCENTILE(F36:OFFSET(F3,(COUNTA(F36:F7000)-1),0),0.1) -> -0.04629374815 | G2: =PERCENTILE(G36:OFFSET(G3,(COUNTA(G36:G7000)-1),0),0.1) -> 0.004004758772 | H2: =PERCENTILE(H36:OFFSET(H3,(COUNTA(H36:H7000)-1),0),0.1) -> 0.004141226706 | I2: =PERCENTILE(I35:OFFSET(I35,(COUNTA(I35:I7000)-1),0),0.1) -> -3.501909956
A3: median | B3: =MEDIAN(B35:OFFSET(B35,(COUNTA(B35:B7000)-1),0)) -> 5.74 | C3: =MEDIAN(C36:OFFSET(C36,(COUNTA(C36:C7000)-1),0)) -> 0 | D3: =MEDIAN(D36:OFFSET(D36,(COUNTA(D36:D7000)-1),0)) -> 0.14 | E3: =MEDIAN(E36:OFFSET(E36,(COUNTA(E36:E7000)-1),0)) -> 0.1387517337 | F3: =MEDIAN(F36:OFFSET(F36,(COUNTA(F36:F7000)-1),0)) -> 0 | G3: =MEDIAN(G36:OFFSET(G36,(COUNTA(G36:G7000)-1),0)) -> 0.02422729534 | H3: =MEDIAN(H36:OFFSET(H36,(COUNTA(H36:H7000)-1),0)) -> 0.02424915978 | I3: =MEDIAN(I35:OFFSET(I35,(COUNTA(I35:I7000)-1),0)) -> -2.857710976
A4: 90-percentile | B4: =PERCENTILE(B35:OFFSET(B35,(COUNTA(B35:B7000)-1),0),0.9) -> 9.78 | C4: =PERCENTILE(C36:OFFSET(C36,(COUNTA(C36:C7000)-1),0),0.9) -> 0.28 | D4: =PERCENTILE(D36:OFFSET(D36,(COUNTA(D36:D7000)-1),0),0.9) -> 0.41 | E4: =PERCENTILE(E36:OFFSET(E36,(COUNTA(E36:E7000)-1),0),0.9) -> 0.4112482663 | F4: =PERCENTILE(F36:OFFSET(F36,(COUNTA(F36:F7000)-1),0),0.9) -> 0.04518222279 | G4: =PERCENTILE(G36:OFFSET(G36,(COUNTA(G36:G7000)-1),0),0.9) -> 0.06770379622 | H4: =PERCENTILE(H36:OFFSET(H36,(COUNTA(H36:H7000)-1),0),0.9) -> 0.06752259402 | I4: =PERCENTILE(I35:OFFSET(I35,(COUNTA(I35:I7000)-1),0),0.9) -> -2.324830702
A5: maximum | B5: =MAX(B35:OFFSET(B35,(COUNTA(B35:B7000)-1),0)) -> 15.32 | C5: =MAX(C36:OFFSET(C36,(COUNTA(C36:C7000)-1),0)) -> 1.61 | D5: =MAX(D36:OFFSET(D36,(COUNTA(D36:D7000)-1),0)) -> 1.76 | E5: =MAX(E36:OFFSET(E36,(COUNTA(E36:E7000)-1),0)) -> 1.758751734 | F5: =MAX(F36:OFFSET(F36,(COUNTA(F36:F7000)-1),0)) -> 0.1783095153 | G5: =MAX(G36:OFFSET(G36,(COUNTA(G36:G7000)-1),0)) -> 0.3775303308 | H5: =MAX(H36:OFFSET(H36,(COUNTA(H36:H7000)-1),0)) -> 0.3769994616 | I5: =MAX(I35:OFFSET(I35,(COUNTA(I35:I7000)-1),0)) -> -1.876011022
A7: mean | B7: =AVERAGE(B35:B7000) -> 6.138393352 | C7: =AVERAGE(C36:C7000) -> -0.001248266297 | D7: =AVERAGE(D36:D7000) -> 0.1880443828 | E7: 0.1880911279 | F7: -0.0005308692216 | G7: 0.03177712278 | H7: 0.03179700277 | I7: =AVERAGE(I35:I7000) -> -2.891033161 | J7: =AVERAGE(J35:J7000) -> 9861.11527 | K7: 208.6286875 | L7: =AVERAGE(L35:L7000) -> 0.09937341514 | M7: =AVERAGE(M36:M7000) -> 4.680075259e-06
J8: =$J$7/$B$9^6 -> 22.07540024 | K8: =$K$7/$B$9^4 -> 3.570226149 | L8: =$L$7/$I$9^6 -> 11.13860292 | M8: =$M$7/$F$9^6 -> 574.462004
A9: standard deviation | B9: =STDEVP(B35:OFFSET(B35,(COUNTA(B35:B7000)-1),0)) -> 2.764837268 | C9: =STDEVP(C36:OFFSET(C36,(COUNTA(C36:C7000)-1),0)) -> 0.2745205796 | D9: =STDEVP(D36:OFFSET(D36,(COUNTA(D36:D7000)-1),0)) -> 0.2000060421 | E9: =STDEVP(E36:OFFSET(E36,(COUNTA(E36:E7000)-1),0)) -> 0.1999581862 | F9: =STDEVP(F36:OFFSET(F36,(COUNTA(F36:F7000)-1),0)) -> 0.04485717521 | G9: =STDEVP(G36:OFFSET(G36,(COUNTA(G36:G7000)-1),0)) -> 0.03166484577 | H9: =STDEVP(H36:OFFSET(H36,(COUNTA(H36:H7000)-1),0)) -> 0.03164042957 | I9: =STDEVP(I35:OFFSET(I35,(COUNTA(I35:I7000)-1),0)) -> 0.4554142149
A11: coeff of var | B11: =B9/B7 -> 0.4504170896 | D11: =D9/D7 -> 1.06361083 | E11: =E9/E7 -> 1.063092069 | G11: =G9/G7 -> 0.9964667346 | H11: =H9/H7 -> 0.9950758503 | I11: =I9/I7 -> -0.1575264584
A12: skewness | B12: =SKEW(B35:OFFSET(B35,(COUNTA(B35:B7000)-1),0))*((STDEV(B35:OFFSET(B35,(COUNTA(B35:B7000)-1),0))/STDEVP(B35:OFFSET(B35,(COUNTA(B35:B7000)-1),0)))^3)*(COUNTA(B35:B7000)-1)*(COUNTA(B35:B7000)-2)/COUNTA(B35:B7000)^2 -> 0.9022879155 | C12: =SKEW(C36:OFFSET(C36,(COUNTA(C36:C7000)-1),0))*((STDEV(C36:OFFSET(C36,(COUNTA(C36:C7000)-1),0))/STDEVP(C36:OFFSET(C36,(COUNTA(C36:C7000)-1),0)))^3)*(COUNTA(C36:C7000)-1)*(COUNTA(C36:C7000)-2)/COUNTA(C36:C7000)^2 -> -0.468016765 | D12: =SKEW(D36:OFFSET(D36,(COUNTA(D36:D7000)-1),0))*((STDEV(D36:OFFSET(D36,(COUNTA(D36:D7000)-1),0))/STDEVP(D36:OFFSET(D36,(COUNTA(D36:D7000)-1),0)))^3)*(COUNTA(D36:D7000)-1)*(COUNTA(D36:D7000)-2)/COUNTA(D36:D7000)^2 -> 2.928383792 | E12: =SKEW(E36:OFFSET(E36,(COUNTA(E36:E7000)-1),0))*((STDEV(E36:OFFSET(E36,(COUNTA(E36:E7000)-1),0))/STDEVP(E36:OFFSET(E36,(COUNTA(E36:E7000)-1),0)))^3)*(COUNTA(E36:E7000)-1)*(COUNTA(E36:E7000)-2)/COUNTA(E36:E7000)^2 -> 2.928154436 | F12: =SKEW(F36:OFFSET(F36,(COUNTA(F36:F7000)-1),0))*((STDEV(F36:OFFSET(F36,(COUNTA(F36:F7000)-1),0))/STDEVP(F36:OFFSET(F36,(COUNTA(F36:F7000)-1),0)))^3)*(COUNTA(F36:F7000)-1)*(COUNTA(F36:F7000)-2)/COUNTA(F36:F7000)^2 -> -1.010042609 | G12: =SKEW(G36:OFFSET(G36,(COUNTA(G36:G7000)-1),0))*((STDEV(G36:OFFSET(G36,(COUNTA(G36:G7000)-1),0))/STDEVP(G36:OFFSET(G36,(COUNTA(G36:G7000)-1),0)))^3)*(COUNTA(G36:G7000)-1)*(COUNTA(G36:G7000)-2)/COUNTA(G36:G7000)^2 -> 3.428369718 | H12: =SKEW(H36:OFFSET(H36,(COUNTA(H36:H7000)-1),0))*((STDEV(H36:OFFSET(H36,(COUNTA(H36:H7000)-1),0))/STDEVP(H36:OFFSET(H36,(COUNTA(H36:H7000)-1),0)))^3)*(COUNTA(H36:H7000)-1)*(COUNTA(H36:H7000)-2)/COUNTA(H36:H7000)^2 -> 3.424593911 | I12: =SKEW(I35:OFFSET(I35,(COUNTA(I35:I7000)-1),0))*((STDEV(I35:OFFSET(I35,(COUNTA(I35:I7000)-1),0))/STDEVP(I35:OFFSET(I35,(COUNTA(I35:I7000)-1),0)))^3)*(COUNTA(I35:I7000)-1)*(COUNTA(I35:I7000)-2)/COUNTA(I35:I7000)^2 -> -0.178879441
A13: kurtosis | B13: =((KURT(B35:OFFSET(B35,(COUNTA(B35:B7000)-1),0))+3*(COUNTA(B35:B7000)-1)^2/((COUNTA(B35:B7000)-2)*(COUNTA(B35:B7000)-3)))*(STDEV(B35:OFFSET(B35,(COUNTA(B35:B7000)-1),0))/STDEVP(B35:OFFSET(B35,(COUNTA(B35:B7000)-1),0)))^4)*(COUNTA(B35:B7000)-1)*(COUNTA(B35:B7000)-2)*(COUNTA(B35:B7000)-3)/((COUNTA(B35:B7000)+1)*COUNTA(B35:B7000)^2) -> 3.570226149 | C13: =((KURT(C36:OFFSET(C36,(COUNTA(C36:C7000)-1),0))+3*(COUNTA(C36:C7000)-1)^2/((COUNTA(C36:C7000)-2)*(COUNTA(C36:C7000)-3)))*(STDEV(C36:OFFSET(C36,(COUNTA(C36:C7000)-1),0))/STDEVP(C36:OFFSET(C36,(COUNTA(C36:C7000)-1),0)))^4)*(COUNTA(C36:C7000)-1)*(COUNTA(C36:C7000)-2)*(COUNTA(C36:C7000)-3)/((COUNTA(C36:C7000)+1)*COUNTA(C36:C7000)^2) -> 9.551912704 | D13: =((KURT(D36:OFFSET(D36,(COUNTA(D36:D7000)-1),0))+3*(COUNTA(D36:D7000)-1)^2/((COUNTA(D36:D7000)-2)*(COUNTA(D36:D7000)-3)))*(STDEV(D36:OFFSET(D36,(COUNTA(D36:D7000)-1),0))/STDEVP(D36:OFFSET(D36,(COUNTA(D36:D7000)-1),0)))^4)*(COUNTA(D36:D7000)-1)*(COUNTA(D36:D7000)-2)*(COUNTA(D36:D7000)-3)/((COUNTA(D36:D7000)+1)*COUNTA(D36:D7000)^2) -> 16.83387796 | E13: =((KURT(E36:OFFSET(E36,(COUNTA(E36:E7000)-1),0))+3*(COUNTA(E36:E7000)-1)^2/((COUNTA(E36:E7000)-2)*(COUNTA(E36:E7000)-3)))*(STDEV(E36:OFFSET(E36,(COUNTA(E36:E7000)-1),0))/STDEVP(E36:OFFSET(E36,(COUNTA(E36:E7000)-1),0)))^4)*(COUNTA(E36:E7000)-1)*(COUNTA(E36:E7000)-2)*(COUNTA(E36:E7000)-3)/((COUNTA(E36:E7000)+1)*COUNTA(E36:E7000)^2) -> 16.82474989 | F13: =((KURT(F36:OFFSET(F36,(COUNTA(F36:F7000)-1),0))+3*(COUNTA(F36:F7000)-1)^2/((COUNTA(F36:F7000)-2)*(COUNTA(F36:F7000)-3)))*(STDEV(F36:OFFSET(F36,(COUNTA(F36:F7000)-1),0))/STDEVP(F36:OFFSET(F36,(COUNTA(F36:F7000)-1),0)))^4)*(COUNTA(F36:F7000)-1)*(COUNTA(F36:F7000)-2)*(COUNTA(F36:F7000)-3)/((COUNTA(F36:F7000)+1)*COUNTA(F36:F7000)^2) -> 11.99777224 | G13: =((KURT(G36:OFFSET(G36,(COUNTA(G36:G7000)-1),0))+3*(COUNTA(G36:G7000)-1)^2/((COUNTA(G36:G7000)-2)*(COUNTA(G36:G7000)-3)))*(STDEV(G36:OFFSET(G36,(COUNTA(G36:G7000)-1),0))/STDEVP(G36:OFFSET(G36,(COUNTA(G36:G7000)-1),0)))^4)*(COUNTA(G36:G7000)-1)*(COUNTA(G36:G7000)-2)*(COUNTA(G36:G7000)-3)/((COUNTA(G36:G7000)+1)*COUNTA(G36:G7000)^2) -> 27.69605482 | H13: =((KURT(H36:OFFSET(H36,(COUNTA(H36:H7000)-1),0))+3*(COUNTA(H36:H7000)-1)^2/((COUNTA(H36:H7000)-2)*(COUNTA(H36:H7000)-3)))*(STDEV(H36:OFFSET(H36,(COUNTA(H36:H7000)-1),0))/STDEVP(H36:OFFSET(H36,(COUNTA(H36:H7000)-1),0)))^4)*(COUNTA(H36:H7000)-1)*(COUNTA(H36:H7000)-2)*(COUNTA(H36:H7000)-3)/((COUNTA(H36:H7000)+1)*COUNTA(H36:H7000)^2) -> 27.62278172 | I13: =((KURT(I35:OFFSET(I35,(COUNTA(I35:I7000)-1),0))+3*(COUNTA(I35:I7000)-1)^2/((COUNTA(I35:I7000)-2)*(COUNTA(I35:I7000)-3)))*(STDEV(I35:OFFSET(I35,(COUNTA(I35:I7000)-1),0))/STDEVP(I35:OFFSET(I35,(COUNTA(I35:I7000)-1),0)))^4)*(COUNTA(I35:I7000)-1)*(COUNTA(I35:I7000)-2)*(COUNTA(I35:I7000)-3)/((COUNTA(I35:I7000)+1)*COUNTA(I35:I7000)^2) -> 2.722478737
A14: 6th-osis | B14: =$J$7/$B$9^6 -> 22.07540024 | F14: =$M$7/$F$9^6 -> 574.462004 | I14: =$L$7/$I$9^6 -> 11.13860292
I16: =I7+LN(100) -> 1.714137025
C17: MEAN /LOGDELTA/ - /MEAN LOGDELTA/ = | G17: =G7-ABS(F7) -> 0.03124625356 | I17: adjusted mean
I18: =I9/I16 -> 0.2656813361
I19: adjusted coeff of var
A20: Title: | B20: 10-Year Treasury Constant Maturity Rate | AH20: αβ= | AI20: 0.03118914888 | AJ20: β/(α-1)= | AK20: 3052215.212
A21: Series ID: | B21: GS10 | AH21: τ= | AI21: 1.421162237 | AJ21: τ= | AK21: 0.1995262114
A22: Source: | B22: Board of Governors of the Federal Reserve System | AE22: mean | AF22: =AF30*AF31 -> 0.03260616306 | AG22: =AG31/(AG30-1) -> 0.1332866786 | AH22: α = | AI22: 0.7220366126 | AJ22: α = | AK22: 22.33336124 | AN22: These are all based on best mix of a stand-alone
A23: Release: | B23: H.15 Selected Interest Rates | AE23: std dev | AF23: =AF31*AF30^0.5 -> 0.02969671754 | AG23: =AG22/(AG30-2)^0.5 ->  | AH23: β = | AI23: 0.04319607667 | AJ23: β = | AK23: 136666.182 | AM23: 0.9315512207 | AN23: best gen-gamma and best gen-inverse gamma
A24: Seasonal Adjustment: | B24: Not Applicable | R24: LOGNORMAL TO FIT VALUES | V24: VARIOUS DISTRIBUTIONS TO FIT NORMALIZED /LOGDELTA/ | AF24: from | AH24: rms error | AI24: 0.005365260883 | AJ24: rms error | AK24: 0.009259311743 | AL24: rms error | AM24: 0.005191173187
A25: Frequency: | B25: Monthly | AF25: data on
A26: Units: | B26: Percent | S26: from | T26: from | Z26: =(($X26-Y26)^2)/50 -> 0 | AD26: α = | AE26: =($AF$28/$AF$29)^2 -> 1.009921522 | AF26: normalized | AG26: =2+($AF$28/$AF$29)^2 -> 3.009921522 | AH26: this should pick up Weibull | AK26: and inv. Weibull
A27: Date Range: | B27: =A35 -> 1953-04-15 | C27: =OFFSET(A35,(COUNTA(A35:A7000)-1),0) -> 2013-05-15T10:30:00 | S27: LN(data) | T27: data | AD27: β = | AE27: =$AF$28/$AE$26 -> 0.03148462735 | AF27: abslogdelta | AG27: =$AF$28*($AG$26-1) -> 0.06390948019
A28: Last Updated: | B28: 2013-06-06 | R28: mean | S28: =EXP(S31+0.5*S32^2) -> 6.158529789 | T28: =B7 -> 6.138393352 | AB28: α= | AC28: 1 | AE28: mean | AF28: =$H7 -> 0.03179700277 | AH28: αβ= | AI28: =AI30*AI31 -> 0.01966890727 | AJ28: β/(α-1)= | AK28: =AK30*AK31 -> 132.5643822 | AQ28: make AQ35 and AR35 green
A29: Notes: | B29: Averages of business days. For further information regarding treasury | R29: std dev | S29: =S28*(EXP(S32^2)-1)^0.5 -> 2.956589865 | T29: =B9 -> 2.764837268 | X29: µ = | Y29: 0 | Z29: µ = | AA29: 0 | AB29: µ = | AC29: 0 | AE29: std dev | AF29: =$H9 -> 0.03164042957 | AH29: τ= | AI29: 2.631240236 | AJ29: τ= | AK29: 0.3299966096 | AN29: These are based on the gen-gamma and | AO29: 0 | AQ29: 0 | AU29: picks up the total low extreme probability … see counts
B30: constant maturity data, please refer to | X30: σ = | Y30: =F9 -> 0.04485717521 | Z30: σ = | AA30: 0.03552903993 | AB30: c= | AC30: 45.97183556 | AE30: α = | AF30: 1.205542417 | AG30: 1.149909838 | AH30: α = | AI30: 0.319482947 | AJ30: α = | AK30: 8.863172005 | AN30: gen-inverse gamma within the best mixture | AO30: 0 | AQ30: 0
B31: http://www.federalreserve.gov/releases/h15/current/h15.pdf | R31: µ = | S31: =I16 -> 1.714137025 | T31: =LN(T28)-0.5*T32^2 -> 1.722205546 | AE31: β = | AF31: 0.02704688163 | AG31: 0.01998098435 | AH31: β = | AI31: 0.06156481105 | AJ31: β = | AK31: 14.95676515 | AM31: 0.7284010788 | AO31: 0 | AQ31: 0 | AS31: 0 | AY31: (for freqabs)
A32: . | B32: http://federalreserve.gov/releases/h15/data.htm | Q32: HISTORICAL | R32: σ = | S32: =I9 -> 0.4554142149 | T32: =(LN((T29/T28)^2+1))^0.5 -> 0.4297848133 | X32: historical | Y32: mean | AA32: L2 | AC32: L2 | AE32: 0.006828836341 | AF32: L2 | AG32: L2 | AH32: 0.02514331698 | AI32: L2 | AK32: generalized | AM32: gen. gamma-inv.gamma | AS32: mean | AT32: L2 | AU32: L2 | AV32: L2 | AW32: L2 | AX32: L2 | AY32: L2
E33: NORMALIZED | H33: NORMALIZED | L33: SIXTH | M33: SIXTH MOMENT | O33: labels | Q33: DATA | S33: LOGNORMAL | V33: labels | X33: data | Y33: gaussian | Z33: rms error | AA33: gaussian | AB33: rms error | AC33: logistic | AD33: rms error | AE33: rms error | AF33: gamma | AG33: inv. gamma | AH33: rms error | AI33: gen. gamma | AJ33: rms error | AK33: inv. gamma | AL33: rms error | AM33: L2 mixture | AN33: rms error | AR33: HISTORICAL | AS33: GAUSSIAN | AT33: GAUSSIAN | AU33: digamma | AV33: dimixture | AW33: digengamma | AX33: logistic | AY33: gen-gamma
A34: DATE | B34: VALUE | C34: DELTA | D34: /DELTA/ | E34: /DELTA/2 | F34: LOGDELTA | G34: /LOGDELTA/ | H34: /LOGDELTA/3 | I34: LOG(VALUE/100) | J34: SIXTH MOMENT | K34: FOURTH MOMENT | L34: LOG MOMENT | M34: LOGDELTA4 | N34: bins | P34: count | U34: bins | W34: count | Z34: =SUM(Z35,Z37:Z86)^0.5 -> 0.009029291537 | AB34: =SUM(AB35,AB37:AB86)^0.5 -> 0.005968198405 | AD34: =SUM(AD35,AD37:AD86)^0.5 -> 0.005453619718 | AE34: =SUM(AE35,AE37:AE86)^0.5 -> 0.005574078117 | AH34: =SUM(AH35,AH37:AH86)^0.5 -> 0.0141205561 | AJ34: =SUM(AJ35,AJ37:AJ86)^0.5 -> 0.006253239051 | AL34: =SUM(AL35,AL37:AL86)^0.5 -> 0.01069393269 | AN34: =SUM(AN35,AN37:AN86)^0.5 -> 0.005191173187 | AO34: bins | AP34: labels | AQ34: counts | AR34: DATA
A35: 1953-04-15 | B35: 2.83 | I35: =LN(B35/100) -> -3.564893474 | J35: =($B35-$B$7)^6 -> 1311.302341 | K35: =($B35-$B$7)^4 -> 119.8032384 | L35: =($I35-$I$7)^6 -> 0.09363091697 | N35: 0 | P35: =FREQUENCY(B35:OFFSET(B35,(COUNTA(B35:B7000)-1),0),N35:N85) -> 0 | S35: =LOGNORMDIST(N36,S$31,S$32)-LOGNORMDIST(1E-97,S$31,S$32) -> 4.950402324e-12 | U35: 0 | W35: =FREQUENCY(H36:OFFSET(H36,(COUNTA(H36:H7000)-1),0),U35:U85) -> 0 | X35: =W36/COUNTA(H36:H7000) -> 0.05825242718 | Y35: =2*( NORMDIST($U36,Y$29,Y$30,TRUE)-NORMDIST($U35,Y$29,Y$30,TRUE)) -> 0.04444504681 | Z35: =(0.5*($X35-Y35)^2)/50.5 -> 1.887561908e-06 | AA35: =2*( NORMDIST($U36,AA$29,AA$30,TRUE)-NORMDIST($U35,AA$29,AA$30,TRUE)) -> 0.05609683183 | AB35: =(0.5*($X35-AA35)^2)/50.5 -> 4.600585477e-08 | AC35: =2*(1/(1+EXP(-AC$30*$U36))-1/(1+EXP(-AC$30*U35))) -> 0.05740162442 | AD35: =(0.5*($X35-AC35)^2)/50.5 -> 7.166983569e-09 | AE35: =(0.5*($X35-AF35)^2)/50.5 -> 8.926500772e-07 | AF35: =(GAMMADIST(U36,AF30,AF31,TRUE) ) -> 0.04875728854 | AG35: =(1-GAMMADIST(1/U36,AG30,1/AG31,TRUE)) -> 0.0005031769631 | AH35: =(0.5*($X35-AG35)^2)/50.5 -> 3.301956338e-05 | AI35: =(GAMMADIST($U36^$AI$29,$AI$30,$AI$31^$AI$29,TRUE) ) -> 0.0756206322 | AJ35: =(0.5*($X35-AI35)^2)/50.5 -> 2.986678669e-06 | AK35: =(1-GAMMADIST((1/U36)^AK$29,AK$30,(1/AK$31)^AK$29,TRUE)) -> 0.007811345104 | AL35: =(0.5*($X35-AK35)^2)/50.5 -> 2.519111645e-05 | AM35: =AM$31*AI35+(1-AM$31)*AK35 -> 0.05720370298 | AN35: =(0.5*($X35-AM35)^2)/50.5 -> 1.08893313e-08 | AO35: =$F$7-0.0025-0.19 -> -0.1930308692 | AP35: =$F$7-0.195 -> -0.1955308692 | AQ35: =FREQUENCY(F36:OFFSET(F36,COUNTA(F36:F7000)-1,0),AO35:AO112) -> 2 | AR35: =AQ35/COUNTA(F$36:F$7000) -> 0.002773925104 | AS35: =NORMDIST(AO35,F$7,F$9,TRUE) -> 8.877580675e-06 | AT35: =NORMDIST(AO35,F$7,AA$30,TRUE) -> 3.011734667e-08 | AU35: =0.5*(1-GAMMADIST(ABS(AO35-$F$7),AF$30,AF$31,TRUE)) -> 0.0006794924206 | AV35: =0.5*(1-AM$31*GAMMADIST(ABS(AO35-$F$7)^AI$29,AI$30,AI$31^AI$29,TRUE)-(1-AM$31)*( 1-GAMMADIST(ABS(1/(AO35-$F$7))^AK$29,AK$30,1/AK$31^AK$29,TRUE))) -> 0.004302384337 | AW35: =0.5*(1-GAMMADIST(ABS(AO35-$F$7)^AI$21,AI$22,AI$23^AI$21,TRUE)) -> 4.968419694e-05 | AX35: =1/(1+EXP(-$AC$30*(AO35-$F$7))) -> 0.0001434216339 | AY35: =(GAMMADIST($U36^$AI$21,$AI$22,$AI$23^$AI$21,TRUE) ) -> 0.05841439231
A36: =A35+30.4375 -> 1953-05-15T10:30:00 | B36: 3.05 | C36: =B36-B35 -> 0.22 | D36: =ABS(C36) -> 0.22 | E36: =ABS(C36-C$7) -> 0.2212482663 | F36: =LN(B36/B35) -> 0.07486487896 | G36: =ABS(F36) -> 0.07486487896 | H36: =ABS(F36-F$7) -> 0.07539574819 | I36: =LN(B36/100) -> -3.490028595 | J36: 867.7520602 | K36: 90.97675363 | L36: 0.04618926718 | M36: =(F36-F$7)^6 -> 1.836881464e-07 | N36: 0.25 | O36: =0 -> 0 | P36: 0 | Q36: =2*P36/COUNTA(B35:B7000) -> 0 | S36: =2*S35 -> 9.900804648e-12 | U36: 0.0025 | V36: =0 -> 0 | W36: 42 | X36: =2*X35 -> 0.1165048544 | Y36: =2*Y35 -> 0.08889009363 | AA36: =2*AA35 -> 0.1121936637 | AC36: =2*AC35 -> 0.1148032488 | AF36: =2*AF35 -> 0.09751457709 | AG36: =2*AG35 -> 0.001006353926 | AI36: =2*$AI35 -> 0.1512412644 | AK36: =2*AK35 -> 0.01562269021 | AM36: =2*AM35 -> 0.114407406 | AO36: =AO35+0.005 -> -0.1880308692 | AP36: =AP35+0.005 -> -0.1905308692 | AQ36: 0 | AR36: =AQ36/COUNTA(F$36:F$7000) -> 0 | AS36: =NORMDIST(AO36,F$7,F$9,TRUE)-NORMDIST(AO35,F$7,F$9,TRUE) -> 5.702150475e-06 | AT36: =NORMDIST(AO36,F$7,AA$30,TRUE)-NORMDIST(AO35,F$7,AA$30,TRUE) -> 3.540709672e-08 | AU36: =IF(AO36 <$F$7,0.5*(1-GAMMADIST(ABS(AO36-$F$7),AF$30,AF$31,TRUE))-0.5*(1-GAMMADIST(ABS(AO35-$F$7),AF$30,AF$31,TRUE)),0.5*(GAMMADIST(ABS(AO36-$F$7),AF$30,AF$31,TRUE))-0.5*( GAMMADIST(ABS(AO35-$F$7),AF$30,AF$31,TRUE))) -> 0.0001340720709 | AV36: =AM$31*(IF(AO36 <$F$7,0.5*(1-GAMMADIST(ABS(AO36-$F$7)^AI$29,AI$30,AI$31^AI$29,TRUE))-0.5*(1-GAMMADIST(ABS(AO35-$F$7)^AI$29,AI$30,AI$31^AI$29,TRUE)),0.5*(GAMMADIST(ABS(AO36-$F$7)^AI$29,AI$30,AI$31^AI$29,TRUE))-0.5*( GAMMADIST(ABS(AO35-$F$7)^AI$29,AI$30,AI$31^AI$29,TRUE))))+(1-AM$31)*(IF(AO36 <$F$7,0.5*(GAMMADIST(1/ABS(AO36-$F$7)^AK$29,AK$30,1/AK$31^AK$29,TRUE))-0.5*(GAMMADIST(1/ABS(AO35-$F$7)^AK$29,AK$30,1/AK$31^AK$29,TRUE)),0.5*((1-GAMMADIST(1/ABS(AO36-$F$7)^AK$29,AK$30,1/AK$31^AK$29,TRUE)))-0.5*( (1-GAMMADIST(1/ABS(AO35-$F$7)^AK$29,AK$30,1/AK$31^AK$29,TRUE))))) -> 0.0002014968079 | AW36: =IF(AO36 <$F$7,0.5*(1-GAMMADIST(ABS(AO36-$F$7)^AI$21,AI$22,AI$23^AI$21,TRUE))-0.5*(1-GAMMADIST(ABS(AO35-$F$7)^AI$21,AI$22,AI$23^AI$21,TRUE)),0.5*(GAMMADIST(ABS(AO36-$F$7)^AI$21,AI$22,AI$23^AI$21,TRUE))-0.5*( GAMMADIST(ABS(AO35-$F$7)^AI$21,AI$22,AI$23^AI$21,TRUE))) -> 1.848866428e-05 | AX36: =1/(1+EXP(-$AC$30*(AO36-$F$7)))-1/(1+EXP(-$AC$30*(AO35-$F$7))) -> 3.705672872e-05 | AY36: =2*$AY35 -> 0.1168287846
A37: =A36+30.4375 -> 1953-06-14T21:00:00 | B37: 3.11 | C37: =B37-B36 -> 0.06 | D37: =ABS(C37) -> 0.06 | E37: =ABS(C37-C$7) -> 0.0612482663 | F37: =LN(B37/B36) -> 0.01948113557 | G37: =ABS(F37) -> 0.01948113557 | H37: =ABS(F37-F$7) -> 0.02001200479 | I37: -3.47054746 | J37: 771.3894674 | K37: 84.11029118 | L37: 0.0378778165 | M37: =(F37-F$7)^6 -> 6.423083819e-11 | N37: =N36+0.5 -> 0.75 | O37: =O36+0.5 -> 0.5 | P37: 0 | Q37: =P37/COUNTA(B$35:B$7000) -> 0 | S37: =LOGNORMDIST(N37,S$31,S$32)-LOGNORMDIST(N36,S$31,S$32) -> 5.523333821e-06 | U37: =U36+0.005 -> 0.0075 | V37: =V36+0.005 -> 0.005 | W37: 81 | X37: =W37/COUNTA(H$36:H$7000) -> 0.1123439667 | Y37: =2*( NORMDIST($U37,Y$29,Y$30,TRUE)-NORMDIST($U36,Y$29,Y$30,TRUE)) -> 0.08834016926 | Z37: =(($X37-Y37)^2)/50.5 -> 1.140955034e-05 | AA37: =2*( NORMDIST($U37,AA$29,AA$30,TRUE)-NORMDIST($U36,AA$29,AA$30,TRUE)) -> 0.1110899675 | AB37: =(($X37-AA37)^2)/50.5 -> 3.113889297e-08 | AC37: =2*(1/(1+EXP(-AC$30*U37))-1/(1+EXP(-AC$30*U36))) -> 0.1133049768 | AD37: =(($X37-AC37)^2)/50.5 -> 1.828792761e-08 | AE37: =(($X37-AF37)^2)/50.5 -> 5.045315175e-07 | AF37: =(GAMMADIST(U37,AF$30,AF$31,TRUE)-GAMMADIST(U36,AF$30,AF$31,TRUE)) -> 0.1173916238 | AG37: =(1-GAMMADIST(1/U37,AG$30,1/AG$31,TRUE))-(1-GAMMADIST(1/U36,AG$30,1/AG$31,TRUE)) -> 0.08984492799 | AH37: =(($X37-AG37)^2)/50.5 -> 1.002389591e-05 | AI37: =(GAMMADIST($U37^$AI$29,$AI$30,$AI$31^$AI$29,TRUE)-GAMMADIST($U36^$AI$29,$AI$30,$AI$31^$AI$29,TRUE)) -> 0.1146342465 | AJ37: =(($X37-AI37)^2)/50.5 -> 1.038689384e-07 | AK37: =(1-GAMMADIST((1/U37)^AK$29,AK$30,(1/AK$31)^AK$29,TRUE))-(1-GAMMADIST((1/U36)^AK$29,AK$30,(1/AK$31)^AK$29,TRUE)) -> 0.1207152716 | AL37: =(($X37-AK37)^2)/50.5 -> 1.387697929e-06 | AM37: =AM$31*AI37+(1-AM$31)*AK37 -> 0.1162858463 | AN37: =(($X37-AM37)^2)/50.5 -> 3.076913857e-07 | AO37: =AO36+0.005 -> -0.1830308692 | AP37: =AP36+0.005 -> -0.1855308692 | AQ37: 0 | AR37: 0 | AS37: =NORMDIST(AO37,F$7,F$9,TRUE)-NORMDIST(AO36,F$7,F$9,TRUE) -> 9.081857252e-06 | AT37: =NORMDIST(AO37,F$7,AA$30,TRUE)-NORMDIST(AO36,F$7,AA$30,TRUE) -> 7.432020873e-08 | AU37: =IF(AO37 <$F$7,0.5*(1-GAMMADIST(ABS(AO37-$F$7),AF$30,AF$31,TRUE))-0.5*(1-GAMMADIST(ABS(AO36-$F$7),AF$30,AF$31,TRUE)),0.5*(GAMMADIST(ABS(AO37-$F$7),AF$30,AF$31,TRUE))-0.5*( GAMMADIST(ABS(AO36-$F$7),AF$30,AF$31,TRUE))) -> 0.0001604139605 | AV37: =AM$31*(IF(AO37 <$F$7,0.5*(1-GAMMADIST(ABS(AO37-$F$7)^AI$29,AI$30,AI$31^AI$29,TRUE))-0.5*(1-GAMMADIST(ABS(AO36-$F$7)^AI$29,AI$30,AI$31^AI$29,TRUE)),0.5*(GAMMADIST(ABS(AO37-$F$7)^AI$29,AI$30,AI$31^AI$29,TRUE))-0.5*( GAMMADIST(ABS(AO36-$F$7)^AI$29,AI$30,AI$31^AI$29,TRUE))))+(1-AM$31)*(IF(AO37 <$F$7,0.5*(GAMMADIST(1/ABS(AO37-$F$7)^AK$29,AK$30,1/AK$31^AK$29,TRUE))-0.5*(GAMMADIST(1/ABS(AO36-$F$7)^AK$29,AK$30,1/AK$31^AK$29,TRUE)),0.5*((1-GAMMADIST(1/ABS(AO37-$F$7)^AK$29,AK$30,1/AK$31^AK$29,TRUE)))-0.5*( (1-GAMMADIST(1/ABS(AO36-$F$7)^AK$29,AK$30,1/AK$31^AK$29,TRUE))))) -> 0.0002155339751 | AW37: =IF(AO37 <$F$7,0.5*(1-GAMMADIST(ABS(AO37-$F$7)^AI$21,AI$22,AI$23^AI$21,TRUE))-0.5*(1-GAMMADIST(ABS(AO36-$F$7)^AI$21,AI$22,AI$23^AI$21,TRUE)),0.5*(GAMMADIST(ABS(AO37-$F$7)^AI$21,AI$22,AI$23^AI$21,TRUE))-0.5*( GAMMADIST(ABS(AO36-$F$7)^AI$21,AI$22,AI$23^AI$21,TRUE))) -> 2.506918071e-05 | AX37: =1/(1+EXP(-$AC$30*(AO37-$F$7)))-1/(1+EXP(-$AC$30*(AO36-$F$7))) -> 4.662912862e-05 | AY37: =(GAMMADIST($U37^$AI$21,$AI$22,$AI$23^$AI$21,TRUE)-GAMMADIST($U36^$AI$21,$AI$22,$AI$23^$AI$21,TRUE)) -> 0.1170893489
A38: 1953-07-15T07:30:00 | B38: 2.93 | C38: -0.18 | D38: 0.18 | E38: 0.1787517337 | F38: =LN(B38/B37) -> -0.05962030316 | G38: 0.05962030316 | H38: 0.05908943394 | I38: -3.530167763 | J38: 1090.751067 | K38: 105.9620693 | L38: 0.06816382947 | M38: 4.256562136e-08 | N38: 1.25 | O38: 1 | P38: 0 | Q38: =P38/COUNTA(B$35:B$7000) -> 0 | S38: =LOGNORMDIST(N38,S$31,S$32)-LOGNORMDIST(N37,S$31,S$32) -> 0.0005247943148 | U38: 0.0125 | V38: =V37+0.005 -> 0.01 | W38: 91 | X38: =W38/COUNTA(H$36:H$7000) -> 0.1262135922 | Y38: =2*( NORMDIST($U38,Y$29,Y$30,TRUE)-NORMDIST($U37,Y$29,Y$30,TRUE)) -> 0.08671072496 | Z38: =(($X38-Y38)^2)/50.5 -> 3.090052521e-05 | AA38: =2*( NORMDIST(U38,AA$29,AA$30,TRUE)-NORMDIST(U37,AA$29,AA$30,TRUE)) -> 0.1078435978 | AB38: =(($X38-AA38)^2)/50.5 -> 6.682310809e-06 | AC38: =2*(1/(1+EXP(-AC$30*U38))-1/(1+EXP(-AC$30*U37))) -> 0.1089633406 | AD38: =(($X38-AC38)^2)/50.5 -> 5.892498666e-06 | AE38: =(($X38-AF38)^2)/50.5 -> 3.279662215e-06 | AF38: 0.1133441345 | AG38: 0.1578427148 | AH38: =(($X38-AG38)^2)/50.5 -> 1.980992862e-05 | AI38: =(GAMMADIST($U38^AI$29,AI$30,AI$31^AI$29,TRUE)-GAMMADIST($U37^AI$29,AI$30,AI$31^AI$29,TRUE)) -> 0.1012610173 | AJ38: =(($X38-AI38)^2)/50.5 -> 1.23293266e-05 | AK38: 0.1489887932 | AL38: =(($X38-AK38)^2)/50.5 -> 1.027148073e-05 | AM38: =AM$31*AI38+(1-AM$31)*AK38 -> 0.1142238298 | AN38: =(($X38-AM38)^2)/50.5 -> 2.846621861e-06 | AO38: -0.1780308692 | AP38: -0.1805308692 | AQ38: 0 | AR38: 0 | AS38: 1.42863188e-05 | AT38: 1.529453124e-07 | AU38: 0.0001919025353 | AV38: 0.0002308961672 | AW38: 3.387392886e-05 | AX38: 5.867297768e-05 | AY38: 0.1104096832
A39: 1953-08-14T18:00:00 | B39: 2.95 | C39: 0.02 | D39: 0.02 | E39: 0.0212482663 | F39: 0.006802747323 | G39: 0.006802747323 | H39: 0.007333616544 | I39: -3.523365016 | J39: 1050.58542 | K39: 103.3445503 | L39: 0.06392494494 | M39: 1.555640312e-13 | N39: 1.75 | O39: 1.5 | P39: 7 | Q39: 0.009695290859 | S39: 0.005090420585 | U39: 0.0175 | V39: 0.015 | W39: 63 | X39: 0.08737864078 | Y39: 0.08406149975 | Z39: 2.178895957e-07 | AA39: 0.1026424275 | AB39: 4.613528395e-06 | AC39: =2*(1/(1+EXP(-AC$30*U39))-1/(1+EXP(-AC$30*U38))) -> 0.1022056019 | AD39: 4.35324311e-06 | AE39: 4.561766361e-06 | AF39: 0.102556559 | AG39: 0.1311801845 | AH39: 3.799158878e-05 | AI39: 0.09331122107 | AJ39: 6.969407719e-07 | AK39: 0.1240659248 | AL39: 2.665261015e-05 | AM39: 0.1016641654 | AN39: 4.041113168e-06 | AO39: -0.1730308692 | AP39: -0.1755308692 | AQ39: 0 | AR39: 0 | AS39: =NORMDIST(AO39,F$7,F$9,TRUE)-NORMDIST(AO38,F$7,F$9,TRUE) -> 2.219604899e-05 | AT39: 3.085873273e-07 | AU39: 0.0002295357252 | AV39: 0.0002477446762 | AW39: 4.560971479e-05 | AX39: 7.382562659e-05 | AY39: 0.1012754641
A40: 1953-09-14T04:30:00 | B40: 2.87 | C40: -0.08 | D40: 0.08 | E40: 0.0787517337 | F40: -0.02749314058 | G40: 0.02749314058 | H40: 0.02696227136 | I40: -3.550858156 | J40: 1219.006189 | K40: 114.1135651 | L40: 0.08252253849 | M40: 3.841836265e-10 | N40: 2.25 | O40: 2 | P40: 14 | Q40: 0.01939058172 | S40: 0.01804821254 | U40: 0.0225 | V40: 0.02 | W40: 60 | X40: 0.08321775312 | Y40: 0.08048800765 | Z40: 1.4755466e-07 | AA40: 0.09577948057 | AB40: 3.124692999e-06 | AC40: 0.09364749246 | AD40: =(($X40-AC40)^2)/50.5 -> 2.154048768e-06 | AE40: 1.048376664e-06 | AF40: 0.09049394866 | AG40: 0.098928386 | AH40: 4.887603674e-06 | AI40: 0.0866704436 | AJ40: 2.360608228e-07 | AK40: 0.09732108349 | AL40: 3.938691633e-06 | AM40: 0.0895631459 | AN40: 7.973071205e-07 | AO40: -0.1680308692 | AP40: -0.1705308692 | AQ40: 0 | AR40: 0 | AS40: 3.405968966e-05 | AT40: 6.104255291e-07 | AU40: 0.0002745028703 | AV40: 0.0002662671874 | AW40: 6.119133224e-05 | AX40: 9.288835771e-05 | AY40: 0.09122290137
A41: 1953-10-14T15:00:00 | B41: 2.66 | C41: -0.21 | D41: 0.21 | E41: 0.2087517337 | F41: -0.07598590698 | G41: 0.07598590698 | H41: 0.07545503776 | I41: -3.626844063 | J41: 1771.218559 | K41: 146.3911321 | L41: 0.1587074483 | M41: 1.845565421e-07 | N41: 2.75 | O41: 2.5 | P41: 25 | Q41: 0.03462603878 | S41: 0.03779120796 | U41: 0.0275 | V41: 0.025 | W41: 64 | X41: 0.08876560333 | Y41: 0.07611582284 | Z41: 3.168652403e-06 | AA41: 0.08762561017 | AB41: 2.573434457e-08 | AC41: 0.083982249 | AD41: 4.53078784e-07 | AE41: 1.976408022e-06 | AF41: 0.07877517766 | AG41: 0.07478490925 | AH41: 3.870491225e-06 | AI41: 0.08023015468 | AJ41: 1.442651163e-06 | AK41: 0.07615781602 | AL41: 3.147649522e-06 | AM41: 0.07912411189 | AN41: 1.840759548e-06 | AO41: -0.1630308692 | AP41: -0.1655308692 | AQ41: 0 | AR41: 0 | AS41: 5.161968806e-05 | AT41: 1.183859036e-06 | AU41: 0.0003282208413 | AV41: 0.0002866863239 | AW41: 8.179682291e-05 | AX41: 0.0001168682978 | AY41: 0.08099833153
A42: 1953-11-14T01:30:00 | B42: 2.68 | C42: 0.02 | D42: 0.02 | E42: 0.0212482663 | F42: 0.007490671729 | G42: 0.007490671729 | H42: 0.008021540951 | I42: -3.619353391 | J42: 1710.985488 | K42: 143.0531913 | L42: 0.1492568391 | M42: 2.664077347e-13 | N42: 3.25 | O42: 3 | P42: 38 | Q42: 0.05263157895 | S42: 0.05837461391 | U42: 0.0325 | V42: 0.03 | W42: 41 | X42: 0.05686546463 | Y42: 0.07109326202 | Z42: 4.00851918e-06 | AA42: 0.07859639833 | AB42: 9.351158009e-06 | AC42: 0.07387584617 | AD42: 5.729763961e-06 | AE42: 2.451725006e-06 | AF42: 0.06799255378 | AG42: 0.05770769944 | AH42: 1.40467221e-08 | AI42: 0.07357390674 | AJ42: 5.528159159e-06 | AK42: 0.06026131028 | AL42: 2.283518351e-07 | AM42: 0.0699582199 | AN42: 3.394460208e-06 | AO42: -0.1580308692 | AP42: -0.1605308692 | AQ42: 0 | AR42: 0 | AS42: 7.726801318e-05 | AT42: 2.251023452e-06 | AU42: 0.0003923767981 | AV42: 0.0003092751303 | AW42: 0.0001089353531 | AX42: 0.0001470308995 | AY42: 0.07105187608
A43: 1953-12-14T12:00:00 | B43: 2.59 | C43: -0.09 | D43: 0.09 | E43: 0.0887517337 | F43: -0.03415891881 | G43: 0.03415891881 | H43: 0.03362804959 | I43: -3.65351231 | J43: 1996.137904 | K43: 158.5356828 | L43: 0.1965023874 | M43: 1.446139122e-09 | N43: 3.75 | O43: 3.5 | P43: 40 | Q43: 0.05540166205 | S43: 0.07462130072 | U43: 0.0375 | V43: 0.035 | W43: 58 | X43: 0.08044382802 | Y43: 0.06558305786 | Z43: 4.37311861e-06 | AA43: 0.06911737631 | AB43: 2.540366499e-06 | AC43: 0.06389112834 | AD43: 5.425581517e-06 | AE43: 9.671949664e-06 | AF43: 0.0583432973 | AG43: 0.0455409481 | AH43: 2.412299062e-05 | AI43: 0.06657146888 | AJ43: 3.810739563e-06 | AK43: 0.04835687729 | AL43: 2.038757242e-05 | AM43: 0.06162440545 | AN43: 7.013280506e-06 | AO43: -0.1530308692 | AP43: -0.1555308692 | AQ43: 0 | AR43: 0 | AS43: 0.0001142335827 | AT43: 4.196360449e-06 | AU43: 0.0004689787515 | AV43: 0.0003343866829 | AW43: 0.0001445298795 | AX43: 0.0001849655705 | AY43: 0.06166465105
A44: 1954-01-13T22:30:00 | B44: 2.48 | C44: -0.11 | D44: 0.11 | E44: 0.1087517337 | F44: -0.04339931553 | G44: 0.04339931553 | H44: 0.04286844631 | I44: -3.696911626 | J44: 2397.410455 | K44: 179.1272244 | L44: 0.2739159375 | M44: 6.206209926e-09 | N44: 4.25 | O44: 4 | P44: 104 | Q44: 0.1440443213 | S44: 0.08422697111 | U44: 0.0425 | V44: 0.04 | W44: 41 | X44: 0.05686546463 | Y44: 0.05975367314 | Z44: 1.651831368e-07 | AA44: 0.05959157289 | AB44: 1.471617071e-07 | AC44: 0.05444919978 | AD44: 1.156106111e-07 | AE44: 9.746238942e-07 | AF44: 0.04984987438 | AG44: 0.03668754051 | AH44: 8.062348945e-06 | AI44: 0.05925219632 | AJ44: 1.128017454e-07 | AK44: 0.03934815329 | AL44: 6.076360328e-06 | AM44: 0.0538462797 | AN44: 1.805045075e-07 | AO44: -0.1480308692 | AP44: -0.1505308692 | AQ44: 1 | AR44: 0.001386962552 | AS44: 0.000166800572 | AT44: 7.669698761e-06 | AU44: 0.0005604152758 | AV44: 0.000362511157 | AW44: 0.0001910169027 | AX44: 0.000232667608 | AY44: 0.05300503856
A45: 1954-02-13T09:00:00 | B45: 2.47 | C45: -0.01 | D45: 0.01 | E45: 0.008751733703 | F45: -0.004040409537 | G45: 0.004040409537 | H45: 0.003509540315 | I45: -3.700952035 | J45: 2436.999198 | K45: 181.0938037 | L45: 0.282259858 | M45: 1.868535761e-15 | N45: 4.75 | O45: 4.5 | P45: 60 | Q45: 0.08310249307 | S45: 0.08729350682 | U45: 0.0475 | V45: 0.045 | W45: 33 | X45: 0.04576976422 | Y45: 0.05377089637 | Z45: 1.267685459e-06 | AA45: 0.05037272604 | AB45: 4.195496549e-07 | AC45: 0.04582403268 | AD45: 5.831814772e-11 | AE45: 2.17672625e-07 | AF45: 0.04245427518 | AG45: 0.03009443369 | AH45: 4.865663114e-06 | AI45: 0.0517461137 | AJ45: 7.072624392e-07 | AK45: 0.03243352489 | AL45: 3.521886718e-06 | AM45: 0.04650083542 | AN45: 1.05834673e-08 | AO45: -0.1430308692 | AP45: -0.1455308692 | AQ45: 1 | AR45: 0.001386962552 | AS45: 0.0002405531022 | AT45: 1.374347639e-05 | AU45: 0.0006695259277 | AV45: 0.0003943831221 | AW45: 0.000251465632 | AX45: 0.0002926402731 | AY45: 0.04516162492
A46: 1954-03-15T19:30:00 | B46: 2.37 | C46: -0.1 | D46: 0.1 | E46: 0.0987517337 | F46: -0.04132819549 | G46: 0.04132819549 | H46: 0.04079732627 | I46: -3.742280231 | J46: 2863.764978 | K46: 201.6623927 | L46: 0.3804817052 | M46: 4.61094785e-09 | N46: 5.25 | O46: 5 | P46: 39 | Q46: 0.0540166205 | S46: 0.08517002475 | U46: 0.0525 | V46: 0.05 | W46: 21 | X46: 0.02912621359 | Y46: 0.04779029031 | Z46: 6.897975438e-06 | AA46: 0.04174640258 | AB46: 3.153844952e-06 | AC46: 0.03815967018 | AD46: 1.615907683e-06 | AE46: 9.528842522e-07 | AF46: 0.03606311886 | AG46: 0.02507621232 | AH46: 3.248021839e-07 | AI46: 0.0442441828 | AJ46: 4.525801839e-06 | AK46: 0.02704805377 | AL46: 8.551976689e-08 | AM46: 0.0395737327 | AN46: 2.161399121e-06 | AO46: -0.1380308692 | AP46: -0.1405308692 | AQ46: 0 | AR46: 0 | AS46: 0.0003426368582 | AT46: 2.414502632e-05 | AU46: 0.0007996841557 | AV46: 0.0004311743776 | AW46: 0.0003297187677 | AX46: 0.000368021612 | AY46: 0.03816571459
A47: 1954-04-15T06:00:00 | B47: 2.29 | C47: -0.08 | D47: 0.08 | E47: 0.0787517337 | F47: -0.03433813758 | G47: 0.03433813758 | H47: 0.03380726836 | I47: -3.776618368 | J47: 3248.454098 | K47: 219.3399918 | L47: 0.4823720337 | M47: 1.493002332e-09 | N47: 5.75 | O47: 5.5 | P47: 37 | Q47: 0.0512465374 | S47: 0.07953810148 | U47: 0.0575 | V47: 0.055 | W47: 23 | X47: 0.0319001387 | Y47: 0.04195094841 | Z47: 2.000371801e-06 | AA47: 0.03391998494 | AB47: 8.078770006e-08 | AC47: 0.0314984976 | AD47: 3.194367666e-09 | AE47: 3.500555361e-08 | AF47: 0.03057055964 | AG47: 0.02118069684 | AH47: 2.275374924e-06 | AI47: 0.03696443927 | AJ47: 5.078641654e-07 | AK47: 0.02279466538 | AL47: 1.641775135e-06 | AM47: 0.03311594397 | AN47: 2.927093991e-08 | AO47: -0.1330308692 | AP47: -0.1355308692 | AQ47: 0 | AR47: 0 | AS47: 0.0004820220323 | AT47: 4.158833844e-05 | AU47: 0.000954894729 | AV47: 0.000474821147 | AW47: 0.0004305567659 | AX47: 0.0004627414831 | AY47: 0.03200798051
A48: 1954-05-15T16:30:00 | B48: 2.37 | C48: 0.08 | D48: 0.08 | E48: 0.0812482663 | F48: 0.03433813758 | G48: 0.03433813758 | H48: 0.0348690068 | I48: -3.742280231 | J48: 2863.764978 | K48: 201.6623927 | L48: 0.3804817052 | M48: 1.797369896e-09 | N48: 6.25 | O48: 6 | P48: 49 | Q48: 0.06786703601 | S48: 0.0719145525 | U48: 0.0625 | V48: 0.06 | W48: 16 | X48: 0.02219140083 | Y48: 0.03637086419 | Z48: 3.981330318e-06 | AA48: 0.02702123722 | AB48: 4.619271202e-07 | AC48: 0.02581157147 | AD48: 2.59517533e-07 | AE48: 2.679877887e-07 | AF48: 0.02587017554 | AG48: 0.01810327521 | AH48: 3.309459627e-07 | AI48: 0.0301213667 | AJ48: 1.245234825e-06 | AK48: 0.01939174634 | AL48: 1.552092135e-07 | AM48: 0.02720721339 | AN48: 4.981856548e-07 | AO48: -0.1280308692 | AP48: -0.1305308692 | AQ48: 1 | AR48: 0.001386962552 | AS48: 0.0006697448693 | AT48: 7.023090661e-05 | AU48: 0.001139907979 | AV48: 0.0005285435239 | AW48: 0.0005598868226 | AX48: 0.0005817151191 | AY48: 0.02665120384
A49: 1954-06-15T03:00:00 | B49: 2.38 | C49: 0.01 | D49: 0.01 | E49: 0.0112482663 | F49: 0.004210532536 | G49: 0.004210532536 | H49: 0.004741401758 | I49: -3.738069698 | J49: 2818.46981 | K49: 199.5303318 | L49: 0.3693285362 | M49: 1.136162729e-14 | N49: 6.75 | O49: 6.5 | P49: 46 | Q49: 0.06371191136 | S49: 0.06346534951 | U49: 0.0675 | V49: 0.065 | W49: 14 | X49: 0.01941747573 | Y49: 0.03114405641 | Z49: 2.723023654e-06 | AA49: 0.0211041463 | AB49: 5.633381418e-08 | AC49: 0.02102555026 | AD49: 5.120601383e-08 | AE49: 1.182377761e-07 | AF49: 0.02186104027 | AG49: 0.01563411964 | AH49: 2.834412531e-07 | AI49: 0.02389970687 | AJ49: 3.978296242e-07 | AK49: 0.01663692955 | AL49: 1.530977634e-07 | AM49: 0.02192714439 | AN49: 1.247215202e-07 | AO49: -0.1230308692 | AP49: -0.1255308692 | AQ49: 2 | AR49: 0.002773925104 | AS49: 0.0009190975301 | AT49: 0.0001162780696 | AU49: 0.001360353402 | AV49: 0.0005976106324 | AW49: 0.0007249567794 | AX49: 0.0007310803617 | AY49: 0.02204010363
A50: 1954-07-15T13:30:00 | B50: 2.3 | C50: -0.08 | D50: 0.08 | E50: 0.0787517337 | F50: -0.03419136475 | G50: 0.03419136475 | H50: 0.03366049553 | I50: -3.772261063 | J50: 3198.135576 | K50: 217.069054 | L50: 0.4683056928 | M50: 1.454531163e-09 | N50: 7.25 | O50: 7 | P50: 37 | Q50: 0.0512465374 | S50: 0.05499154973 | U50: 0.0725 | V50: 0.07 | W50: 17 | X50: 0.02357836338 | Y50: 0.02633943496 | Z50: 1.509607174e-07 | AA50: 0.01616007306 | AB50: 1.089723394e-06 | AC50: 0.01704386163 | AD50: 8.455388737e-07 | AE50: 5.206713844e-07 | AF50: 0.01845060511 | AG50: 0.0136255462 | AH50: 1.961555841e-06 | AI50: 0.01843499135 | AJ50: 5.238470479e-07 | AK50: 0.01438269839 | AL50: 1.67446049e-06 | AM50: 0.01733439295 | AN50: 7.720231047e-07 | AO50: -0.1180308692 | AP50: -0.1205308692 | AQ50: 2 | AR50: 0.002773925104 | AS50: 0.001245728793 | AT50: 0.0001887470614 | AU50: 0.001622895437 | AV50: 0.0006903754832 | AW50: 0.0009345926126 | AX50: 0.000918486248 | AY50: 0.01810886865
A51: 1954-08-15 | B51: 2.36 | C51: 0.06 | D51: 0.06 | E51: 0.0612482663 | F51: 0.0257524961 | G51: 0.0257524961 | H51: 0.02628336532 | I51: -3.746508567 | J51: 2909.665137 | K51: 203.8114945 | L51: 0.3919630881 | M51: 3.296748591e-10 | N51: 7.75 | O51: 7.5 | P51: 49 | Q51: 0.06786703601 | S51: 0.04698864032 | U51: 0.0775 | V51: 0.075 | W51: 12 | X51: 0.01664355062 | Y51: 0.02200125472 | Z51: 5.68415707e-07 | AA51: 0.01213198363 | AB51: 4.030541935e-07 | AC51: 0.01376181007 | AD51: 1.644441314e-07 | AE51: 2.342977209e-08 | AF51: 0.01555579905 | AG51: 0.01197150366 | AH51: 4.322380757e-07 | AI51: 0.01380268141 | AJ51: 1.598126318e-07 | AK51: 0.01251997822 | AL51: 3.367098884e-07 | AM51: 0.01345430061 | AN51: 2.014121917e-07 | AO51: -0.1130308692 | AP51: -0.1155308692 | AQ51: 0 | AR51: 0 | AS51: 0.001667612372 | AT51: 0.0003003830653 | AU51: 0.0019354144 | AV51: 0.0008195390416 | AW51: 0.00119945597 | AX51: 0.001153440616 | AY51: 0.01478682855
A52: 1954-09-14T10:30:00 | B52: 2.38 | C52: 0.02 | D52: 0.02 | E52: 0.0212482663 | F52: 0.008438868646 | G52: 0.008438868646 | H52: 0.008969737867 | I52: -3.738069698 | J52: 2818.46981 | K52: 199.5303318 | L52: 0.3693285362 | M52: 5.208090331e-13 | N52: 8.25 | O52: 8 | P52: 44 | Q52: 0.06094182825 | S52: 0.03972450434 | U52: 0.0825 | V52: 0.08 | W52: 2 | X52: 0.002773925104 | Y52: 0.01815089989 | Z52: 4.682205019e-06 | AA52: 0.008929625967 | AB52: 7.503495665e-07 | AC52: 0.01107641968 | AD52: 1.364978537e-06 | AE52: 2.1127246e-06 | AF52: 0.01310313574 | AG52: 0.01059442304 | AH52: 1.211092832e-06 | AI52: 0.01001656605 | AJ52: 1.038729662e-06 | AK52: 0.01096701193 | AL52: 1.329241026e-06 | AM52: 0.01027470613 | AN52: 1.114093386e-06 | AO52: -0.1080308692 | AP52: -0.1105308692 | AQ52: 2 | AR52: 0.002773925104 | AS52: 0.002204836645 | AT52: 0.0004686877086 | AU52: 0.00230721572 | AV52: 0.001003501846 | AW52: 0.001532315225 | AX52: 0.001447723295 | AY52: 0.01200261048
A53: 1954-10-14T21:00:00 | B53: 2.43 | C53: 0.05 | D53: 0.05 | E53: 0.0512482663 | F53: 0.02079076967 | G53: 0.02079076967 | H53: 0.02132163889 | I53: -3.717278929 | J53: 2600.84675 | K53: 189.1224892 | L53: 0.318167259 | M53: 9.395578003e-11 | N53: 8.75 | O53: 8.5 | P53: 25 | Q53: 0.03462603878 | S53: 0.03331097509 | U53: 0.0875 | V53: 0.085 | W53: 7 | X53: 0.009708737864 | Y53: 0.0147896736 | Z53: 5.112060977e-07 | AA53: 0.006443883333 | AB53: 2.110747546e-07 | AC53: 0.008892199377 | AD53: 1.320267528e-08 | AE53: 3.447909997e-08 | AF53: 0.01102828117 | AG53: 0.009436608527 | AH53: 1.466423286e-09 | AI53: 0.007035528193 | AJ53: 1.415059396e-07 | AK53: 0.009661727763 | AL53: 4.376137736e-11 | AM53: 0.007748801163 | AN53: 7.606637371e-08 | AO53: -0.1030308692 | AP53: -0.1055308692 | AQ53: 5 | AR53: 0.00693481276 | AS53: 0.002879170834 | AT53: 0.0007169759189 | AU53: 0.00274927053 | AV53: 0.001267537462 | AW53: 0.001948319566 | AX53: 0.001815868474 | AY53: 0.00968707188
A54: 1954-11-14T07:30:00 | B54: 2.48 | C54: 0.05 | D54: 0.05 | E54: 0.0512482663 | F54: 0.02036730282 | G54: 0.02036730282 | H54: 0.02089817205 | I54: -3.696911626 | J54: 2397.410455 | K54: 179.1272244 | L54: 0.2739159375 | M54: 8.330092066e-11 | N54: 9.25 | O54: 9 | P54: 28 | Q54: 0.03878116343 | S54: 0.02776048678 | U54: 0.0925 | V54: 0.09 | W54: 3 | X54: 0.004160887656 | Y54: 0.01190224078 | Z54: 1.186703925e-06 | AA54: 0.004559056862 | AB54: 3.139380526e-09 | AC54: 0.007124007823 | AD54: 1.738629925e-07 | AE54: 5.179744243e-07 | AF54: 0.009275348373 | AG54: 0.008454485939 | AH54: 3.65049232e-07 | AI54: 0.004776439894 | AJ54: 7.503060542e-09 | AK54: 0.008556432972 | AL54: 3.825904678e-07 | AM54: 0.005803081936 | AN54: 5.340202085e-08 | AO54: -0.09803086922 | AP54: -0.1005308692 | AQ54: 0 | AR54: 0 | AS54: 0.003713369432 | AT54: 0.001075321853 | AU54: 0.003274490352 | AV54: 0.001644408525 | AW54: 0.002465260552 | AX54: 0.002275713699 | AY54: 0.007775258123
A55: 1954-12-14T18:00:00 | B55: 2.51 | C55: 0.03 | D55: 0.03 | E55: 0.0312482663 | F55: 0.01202419297 | G55: 0.01202419297 | H55: 0.01255506219 | I55: -3.684887433 | J55: 2281.845182 | K55: 173.3234999 | L55: 0.2502907018 | M55: 3.916635981e-12 | N55: 9.75 | O55: 9.5 | P55: 6 | Q55: 0.008310249307 | S55: 0.02302719774 | U55: 0.0975 | V55: 0.095 | W55: 4 | X55: 0.005547850208 | Y55: 0.009460380127 | Z55: 3.031265419e-07 | AA55: 0.003162388911 | AB55: 1.126816951e-07 | AC55: 0.005698003759 | AD55: 4.464572024e-10 | AE55: 1.000894647e-07 | AF55: 0.007796075723 | AG55: 0.007614685757 | AH55: 8.459028094e-08 | AI55: 0.003130158006 | AJ55: 1.157472393e-07 | AK55: 0.007614074042 | AL55: 8.454021651e-08 | AM55: 0.004347984765 | AN55: 2.850845708e-08 | AO55: -0.09303086922 | AP55: -0.09553086922 | AQ55: 1 | AR55: 0.001386962552 | AS55: 0.004730190064 | AT55: 0.001581194455 | AU55: 0.003898037861 | AV55: 0.002173992382 | AW55: 0.00310379922 | AX55: 0.002849001879 | AY55: 0.006207598441
A56: 1955-01-14T04:30:00 | B56: 2.61 | C56: 0.1 | D56: 0.1 | E56: 0.1012482663 | F56: 0.03906746819 | G56: 0.03906746819 | H56: 0.03959833741 | I56: -3.645819965 | J56: 1929.576364 | K56: 154.9915354 | L56: 0.1849037805 | M56: 3.855331363e-09 | N56: 10.25 | O56: 10 | P56: 6 | Q56: 0.008310249307 | S56: 0.01903502149 | U56: 0.1025 | V56: 0.1 | W56: 3 | X56: 0.004160887656 | Y56: 0.007426738864 | Z56: 2.112036458e-07 | AA56: 0.002150643706 | AB56: 8.002140079e-08 | AC56: 0.004551427398 | AD56: 3.020223569e-09 | AE56: 1.129304635e-07 | AF56: 0.006548980704 | AG56: 0.006891327221 | AH56: 1.476297073e-07 | AI56: 0.001977526972 | AJ56: 9.439730447e-08 | AK56: 0.006805565582 | AL56: 1.385014126e-07 | AM56: 0.00328881705 | AN56: 1.505954735e-08 | AO56: -0.08803086922 | AP56: -0.09053086922 | AQ56: 1 | AR56: 0.001386962552 | AS56: 0.005951120392 | AT56: 0.002279528431 | AU56: 0.004637674187 | AV56: 0.002901540968 | AW56: 0.003887629062 | AX56: 0.003562003911 | AY56: 0.004930521105
A57: 1955-02-13T15:00:00 | B57: 2.65 | C57: 0.04 | D57: 0.04 | E57: 0.0412482663 | F57: 0.01520941866 | G57: 0.01520941866 | H57: 0.01574028789 | I57: -3.630610546 | J57: 1801.991345 | K57: 148.0818395 | L57: 0.1636446213 | M57: 1.520813739e-11 | N57: 10.75 | O57: 10.5 | P57: 13 | Q57: 0.01800554017 | S57: 0.0156957121 | U57: 0.1075 | V57: 0.105 | W57: 6 | X57: 0.008321775312 | Y57: 0.005758341668 | Z57: 1.301226148e-07 | AA57: 0.001433951838 | AB57: 9.394477666e-07 | AC57: 0.003631736948 | AD57: 4.355734625e-07 | AE57: 1.57834686e-07 | AF57: 0.00549854106 | AG57: 0.006264103663 | AH57: 8.384183397e-08 | AI57: 0.001202891257 | AJ57: 1.003534855e-06 | AK57: 0.006107857968 | AL57: 9.705801993e-08 | AM57: 0.002535074924 | AN57: 6.63087156e-07 | AO57: -0.08303086922 | AP57: -0.08553086922 | AQ57: 4 | AR57: 0.005547850208 | AS57: 0.007394836799 | AT57: 0.003221941667 | AU57: 0.005514140587 | AV57: 0.003874400581 | AW57: 0.00484353594 | AX57: 0.004446099688 | AY57: 0.003896639132
A58: 1955-03-16T01:30:00 | B58: 2.68 | C58: 0.03 | D58: 0.03 | E58: 0.0312482663 | F58: 0.01125715452 | G58: 0.01125715452 | H58: 0.01178802375 | I58: -3.619353391 | J58: 1710.985488 | K58: 143.0531913 | L58: 0.1492568391 | M58: 2.683156548e-12 | N58: 11.25 | O58: 11 | P58: 5 | Q58: 0.006925207756 | S58: 0.01291987394 | U58: 0.1125 | V58: 0.11 | W58: 3 | X58: 0.004160887656 | Y58: 0.00440967329 | Z58: 1.225629536e-09 | AA58: 0.0009373754172 | AB58: 2.057629931e-07 | AC58: 0.002895446591 | AD58: 3.170972454e-08 | AE58: 4.073306224e-09 | AF58: 0.00461443144 | AG58: 0.005716911745 | AH58: 4.794477158e-08 | AI58: 0.0007036295944 | AJ58: 2.36685808e-07 | AK58: 0.005502522355 | AL58: 3.564324089e-08 | AM58: 0.002007003691 | AN58: 9.186566601e-08 | AO58: -0.07803086922 | AP58: -0.08053086922 | AQ58: 0 | AR58: 0 | AS58: 0.009075449943 | AT58: 0.004464812983 | AU58: 0.006551567868 | AV58: 0.005137353065 | AW58: 0.00600130524 | AX58: 0.005538209838 | AY58: 0.003064630449
A59: 1955-04-15T12:00:00 | B59: 2.75 | C59: 0.07 | D59: 0.07 | E59: 0.0712482663 | F59: 0.02578411716 | G59: 0.02578411716 | H59: 0.02631498638 | I59: -3.593569274 | J59: 1513.432046 | K59: 131.8181717 | L59: 0.1202297438 | M59: 3.320617843e-10 | N59: 11.75 | O59: 11.5 | P59: 13 | Q59: 0.01800554017 | S59: 0.0106231775 | U59: 0.1175 | V59: 0.115 | W59: 1 | X59: 0.001386962552 | Y59: 0.003335224744 | Z59: 7.516288254e-08 | AA59: 0.0006007661307 | AB59: 1.223969927e-08 | AC59: 0.002306881232 | AD59: 1.675743321e-08 | AE59: 1.221701294e-07 | AF59: 0.003870828799 | AG59: 0.005236856029 | AH59: 2.934986096e-07 | AI59: 0.0003953237188 | AJ59: 1.947222922e-08 | AK59: 0.004974702601 | AL59: 2.548886863e-07 | AM59: 0.001639078083 | AN59: 1.258658239e-09 | AO59: -0.07303086922 | AP59: -0.07553086922 | AQ59: 3 | AR59: 0.004160887656 | AS59: 0.01100062736 | AT59: 0.006065991813 | AU59: 0.007777899524 | AV59: 0.006727150303 | AW59: 0.007393414273 | AX59: 0.006880905034 | AY59: 0.002398911939
A60: 1955-05-15T22:30:00 | B60: 2.76 | C60: 0.01 | D60: 0.01 | E60: 0.0112482663 | F60: 0.003629768051 | G60: 0.003629768051 | H60: 0.004160637272 | I60: -3.589939506 | J60: 1486.829888 | K60: 130.2689328 | L60: 0.1165504352 | M60: 5.187512207e-15 | N60: 12.25 | O60: 12 | P60: 5 | Q60: 0.006925207756 | S60: 0.008729462428 | U60: 0.1225 | V60: 0.12 | W60: 2 | X60: 0.002773925104 | Y60: 0.002491457587 | Z60: 1.579958383e-09 | AA60: 0.0003774941228 | AB60: 1.137204247e-07 | AC60: 0.001836972496 | AD60: 1.738376614e-08 | AE60: 4.409055544e-09 | AF60: 0.003245790874 | AG60: 0.004813516522 | AH60: 8.237491388e-08 | AI60: 0.0002130788358 | AJ60: 1.298600715e-07 | AK60: 0.00451233056 | AL60: 5.984264416e-08 | AM60: 0.001380750966 | AN60: 3.843434016e-08 | AO60: -0.06803086922 | AP60: -0.07053086922 | AQ60: 8 | AR60: 0.01109570042 | AS60: 0.01316971748 | AT60: 0.008080036528 | AU60: 0.009225302555 | AV60: 0.008667196475 | AW60: 0.009054434324 | AX60: 0.008521930817 | AY60: 0.001869185225
A61: 1955-06-15T09:00:00 | B61: 2.78 | C61: 0.02 | D61: 0.02 | E61: 0.0212482663 | F61: 0.007220247973 | G61: 0.007220247973 | H61: 0.007751117195 | I61: -3.582719258 | J61: 1434.793396 | K61: 127.2114627 | L61: 0.109510126 | M61: 2.168631792e-13 | N61: 12.75 | O61: 12.5 | P61: 9 | Q61: 0.01246537396 | S61: 0.007171905364 | U61: 0.1275 | V61: 0.125 | W61: 3 | X61: 0.004160887656 | Y61: 0.00183819506 | Z61: 1.068297207e-07 | AA61: 0.0002325561392 | AB61: 3.055799704e-07 | AC61: 0.001462160723 | AD61: 1.442203378e-07 | AE61: 4.107170067e-08 | AF61: 0.002720706805 | AG61: 0.004438403105 | AH61: 1.525046027e-09 | AI61: 0.0001100534346 | AJ61: 3.249357998e-07 | AK61: 0.004105532596 | AL61: 6.067688408e-11 | AM61: 0.001195221265 | AN61: 1.741619237e-07 | AO61: -0.06303086922 | AP61: -0.06553086922 | AQ61: 11 | AR61: 0.01525658807 | AS61: 0.01557202821 | AT61: 0.01055207315 | AU61: 0.01093052014 | AV61: 0.01096357219 | AW61: 0.01102005181 | AX61: 0.01051277513 | AY61: 0.001449913559
A62: 1955-07-15T19:30:00 | B62: 2.9 | C62: 0.12 | D62: 0.12 | E62: 0.1212482663 | F62: 0.04225980929 | G62: 0.04225980929 | H62: 0.04279067851 | I62: -3.540459449 | J62: 1153.393755 | K62: 109.9811856 | L62: 0.07502036717 | M62: 6.138963308e-09 | N62: 13.25 | O62: 13 | P62: 4 | Q62: 0.005540166205 | S62: 0.005893046035 | U62: 0.1325 | V62: 0.13 | W62: 3 | X62: 0.004160887656 | Y62: 0.001339489739 | Z62: 1.576294299e-07 | AA62: 0.0001404618132 | AB62: 3.200757219e-07 | AC62: 0.001163430238 | AD62: 1.779158608e-07 | AE62: 7.006793537e-08 | AF62: 0.002279815957 | AG62: 0.004104544541 | AH62: 6.286230917e-11 | AI62: 5.440624552e-05 | AJ62: 3.33924546e-07 | AK62: 0.00374617644 | AL62: 3.405651335e-09 | AM62: 0.001057087048 | AN62: 1.907639251e-07 | AO62: -0.05803086922 | AP62: -0.06053086922 | AQ62: 9 | AR62: 0.01248266297 | AS62: 0.01818543209 | AT62: 0.01351061861 | AU62: 0.01293508777 | AV62: 0.01360360669 | AW62: 0.01332560192 | AX62: 0.01290578573 | AY62: 0.001119773645
A63: 1955-08-15T06:00:00 | B63: 2.97 | C63: 0.07 | D63: 0.07 | E63: 0.0712482663 | F63: 0.02385121582 | G63: 0.02385121582 | H63: 0.02438208504 | I63: -3.516608233 | J63: 1011.659956 | K63: 100.7758276 | L63: 0.05993446146 | M63: 2.100995153e-10 | N63: 13.75 | O63: 13.5 | P63: 8 | Q63: 0.01108033241 | S63: 0.004844188659 | U63: 0.1375 | V63: 0.135 | W63: 0 | X63: 0 | Y63: 0.0009640440646 | Z63: 1.840358334e-08 | AA63: 8.317667689e-05 | AB63: 1.369972194e-10 | AC63: 0.0009254829662 | AD63: 1.696076675e-08 | AE63: 7.222367869e-08 | AF63: 0.001909789458 | AG63: 0.003806175583 | AH63: 2.86870744e-07 | AI63: 2.571520901e-05 | AJ63: 1.309449454e-11 | AK63: 0.003427522111 | AL63: 2.326318381e-07 | AM63: 0.0009496422939 | AN63: 1.785783141e-08 | AO63: -0.05303086922 | AP63: -0.05553086922 | AQ63: 12 | AR63: 0.01664355062 | AS63: 0.02097547421 | AT63: 0.01695999247 | AU63: 0.01528527982 | AV63: 0.01655797199 | AW63: 0.01600399025 | AX63: 0.0157492488 | AY63: 0.0008611135318
A64: 1955-09-14T16:30:00 | B64: 2.97 | C64: 0 | D64: 0 | E64: 0.001248266297 | F64: 0 | G64: 0 | H64: 0.0005308692216 | I64: -3.516608233 | J64: 1011.659956 | K64: 100.7758276 | L64: 0.05993446146 | M64: 2.238336005e-20 | N64: 14.25 | O64: 14 | P64: 4 | Q64: 0.005540166205 | S64: 0.003984504348 | U64: 0.1425 | V64: 0.14 | W64: 1 | X64: 0.001386962552 | Y64: 0.0006852737164 | Z64: 9.749845982e-09 | AA64: 4.829005264e-05 | AB64: 3.5486021e-08 | AC64: 0.0007360432241 | AD64: 8.390019237e-09 | AE64: 8.933902301e-10 | AF64: 0.001599368311 | AG64: 0.003538496428 | AH64: 9.166530735e-08 | AI64: 1.160778857e-05 | AJ64: 3.745744011e-08 | AK64: 0.00314395074 | AL64: 6.112886125e-08 | AM64: 0.0008623487552 | AN64: 5.449893779e-09 | AO64: -0.04803086922 | AP64: -0.05053086922 | AQ64: 13 | AR64: 0.01803051318 | AS64: 0.02389514515 | AT64: 0.02087320129 | AU64: 0.01803155943 | AV64: 0.01978686635 | AW64: 0.01908285729 | AX64: 0.01907983509 | AY64: 0.0006594375353
A65: 1955-10-15T03:00:00 | B65: 2.88 | C65: -0.09 | D65: 0.09 | E65: 0.0887517337 | F65: -0.03077165867 | G65: 0.03077165867 | H65: 0.03024078945 | I65: -3.547379892 | J65: 1196.798582 | K65: 112.7233907 | L65: 0.07994659248 | M65: 7.648191371e-10 | N65: 14.75 | O65: 14.5 | P65: 4 | Q65: 0.005540166205 | S65: 0.003280031868 | U65: 0.1475 | V65: 0.145 | W65: 1 | X65: 0.001386962552 | Y65: 0.0004811062044 | Z65: 1.624902421e-08 | AA65: 2.748695278e-05 | AB65: 3.659750307e-08 | AC65: 0.0005852805462 | AD65: 1.272661462e-08 | AE65: 4.545415527e-11 | AF65: 0.001339051855 | AG65: 0.003297486082 | AH65: 7.227921103e-08 | AI65: 4.998690692e-06 | AJ65: 3.781829929e-08 | AK65: 0.002890752249 | AL65: 4.477987037e-08 | AM65: 0.0007887662442 | AN65: 7.085917282e-09 | AO65: -0.04303086922 | AP65: -0.04553086922 | AQ65: 15 | AR65: 0.02080443828 | AS65: 0.02688544818 | AT65: 0.02518636302 | AU65: 0.02122713759 | AV65: 0.02325041771 | AW65: 0.02258081246 | AX65: 0.02291201634 | AY65: 0.000502931264
A66: 1955-11-14T13:30:00 | B66: 2.89 | C66: 0.01 | D66: 0.01 | E66: 0.0112482663 | F66: 0.003466207976 | G66: 0.003466207976 | H66: 0.003997077198 | I66: -3.543913684 | J66: 1174.929148 | K66: 111.3459569 | L66: 0.0774465855 | M66: 4.078075077e-15 | N66: 15.25 | O66: 15 | P66: 2 | Q66: 0.002770083102 | S66: 0.002702690293 | U66: 0.1525 | V66: 0.15 | W66: 1 | X66: 0.001386962552 | Y66: 0.0003336011441 | Z66: 2.197168823e-08 | AA66: 1.533939752e-05 | AB66: 3.725445699e-08 | AC66: 0.0004653352161 | AD66: 1.681974151e-08 | AE66: 1.402499835e-09 | AF66: 0.001120830552 | AG66: 0.003079756316 | AH66: 5.674357874e-08 | AI66: 2.051381371e-06 | AJ66: 3.79797812e-08 | AK66: 0.002663957877 | AL66: 3.229142693e-08 | AM66: 0.000725022314 | AN66: 8.676532251e-09 | AO66: -0.03803086922 | AP66: -0.04053086922 | AQ66: 14 | AR66: 0.01941747573 | AS66: 0.02987683657 | AT66: 0.02979578644 | AU66: 0.02492493719 | AV66: 0.02692313985 | AW66: 0.02650251928 | AX66: 0.02722459989 | AY66: 0.0003820338054
A67: 1955-12-15 | B67: 2.96 | C67: 0.07 | D67: 0.07 | E67: 0.0712482663 | F67: 0.02393276621 | G67: 0.02393276621 | H67: 0.02446363543 | I67: -3.519980918 | J67: 1030.969606 | K67: 102.0541276 | L67: 0.06189954171 | M67: 2.143512283e-10 | N67: 15.75 | O67: 15.5 | P67: 1 | Q67: 0.001385041551 | S67: 0.002229363842 | U67: 0.1575 | V67: 0.155 | W67: 0 | X67: 0 | Y67: 0.0002284671653 | Z67: 1.033608824e-09 | AA67: 8.392720898e-06 | AB67: 1.394807209e-12 | AC67: 0.000369931141 | AD67: 2.709882159e-09 | AE67: 1.74210748e-08 | AF67: 0.000937957503 | AG67: 0.00288243647 | AH67: 1.645235644e-07 | AI67: 8.014240347e-07 | AJ67: 1.271842541e-14 | AK67: 0.002460207149 | AL67: 1.198538458e-07 | AM67: 0.0006687733657 | AN67: 8.856590391e-09 | AO67: -0.03303086922 | AP67: -0.03553086922 | AQ67: 32 | AR67: 0.04438280166 | AS67: 0.03279152893 | AT67: 0.03455868816 | AU67: 0.02917164865 | AV67: 0.03081220273 | AW67: 0.03083232552 | AX67: 0.03194556417 | AY67: 0.0002890597591
A68: 1956-01-14T10:30:00 | B68: 2.9 | C68: -0.06 | D68: 0.06 | E68: 0.0587517337 | F68: -0.02047853134 | G68: 0.02047853134 | H68: 0.01994766212 | I68: -3.540459449 | J68: 1153.393755 | K68: 109.9811856 | L68: 0.07502036717 | M68: 6.300166406e-11 | N68: 16.25 | O68: 16 | P68: 0 | Q68: 0 | S68: 0.001841086342 | U68: 0.1625 | V68: 0.16 | W68: 0 | X68: 0 | Y68: 0.0001545360264 | Z68: 4.72898682e-10 | AA68: 4.502046904e-06 | AB68: 4.013549767e-13 | AC68: 0.000294061799 | AD68: 1.712323596e-09 | AE68: 1.219481597e-08 | AF68: 0.0007847535961 | AG68: 0.002703081892 | AH68: 1.446861726e-07 | AI68: 2.977506055e-07 | AJ68: 1.755552932e-15 | AK68: 0.002276641512 | AL68: 1.026355758e-07 | AM68: 0.0006185502607 | AN68: 7.576325247e-09 | AO68: -0.02803086922 | AP68: -0.03053086922 | AQ68: 15 | AR68: 0.02080443828 | AS68: 0.03554663101 | AT68: 0.03929819917 | AU68: 0.03399627689 | AV68: 0.03497910995 | AW68: 0.03552593804 | AX68: 0.03693792308 | AY68: 0.0002178707062
A69: 1956-02-13T21:00:00 | B69: 2.84 | C69: -0.06 | D69: 0.06 | E69: 0.0587517337 | F69: -0.02090668482 | G69: 0.02090668482 | H69: 0.0203758156 | I69: -3.561366134 | J69: 1287.699949 | K69: 118.3613161 | L69: 0.09072845033 | M69: 7.156324241e-11 | N69: 16.75 | O69: 16.5 | P69: 0 | Q69: 0 | S69: 0.001522333239 | U69: 0.1675 | V69: 0.165 | W69: 0 | X69: 0 | Y69: 0.0001032393761 | Z69: 2.110568076e-10 | AA69: 2.367718071e-06 | AB69: 1.110116607e-13 | AC69: 0.0002337365956 | AD69: 1.081837547e-09 | AE69: 8.532983813e-09 | AF69: =(GAMMADIST(U69,AF$30,AF$31,TRUE)-GAMMADIST(U68,AF$30,AF$31,TRUE)) -> 0.0006564416825 | AG69: =(1-GAMMADIST(1/U69,AG$30,1/AG$31,TRUE))-(1-GAMMADIST(1/U68,AG$30,1/AG$31,TRUE)) -> 0.002539600661 | AH69: 1.277142875e-07 | AI69: 1.050924612e-07 | AJ69: 2.18701493e-16 | AK69: =(1-GAMMADIST((1/U69)^AK$29,AK$30,(1/AK$31)^AK$29,TRUE))-(1-GAMMADIST((1/U68)^AK$29,AK$30,(1/AK$31)^AK$29,TRUE)) -> 0.00211081876 | AL69: 8.82288285e-08 | AM69: 0.0005733726477 | AN69: 6.510023627e-09 | AO69: -0.02303086922 | AP69: -0.02553086922 | AQ69: 31 | AR69: 0.04299583911 | AS69: 0.03805791142 | AT69: 0.04381280509 | AU69: 0.03938758883 | AV69: 0.03956205594 | AW69: 0.04049916577 | AX69: 0.0419911245 | AY69: =(GAMMADIST($U69^$AI$21,$AI$22,$AI$23^$AI$21,TRUE)-GAMMADIST($U68^$AI$21,$AI$22,$AI$23^$AI$21,TRUE)) -> 0.0001635936458
A70: 1956-03-15T07:30:00 | B70: 2.96 | C70: 0.12 | D70: 0.12 | E70: 0.1212482663 | F70: 0.04138521616 | G70: 0.04138521616 | H70: 0.04191608538 | I70: -3.519980918 | J70: 1030.969606 | K70: 102.0541276 | L70: 0.06189954171 | M70: 5.423558115e-09 | N70: 17.25 | O70: 17 | P70: 0 | Q70: 0 | S70: 0.001260418128 | U70: 0.1725 | V70: 0.17 | W70: 0 | X70: 0 | Y70: 6.811937933e-05 | Z70: 9.188613545e-11 | AA70: 1.220851058e-06 | AB70: 2.951440211e-14 | AC70: 0.0001857767154 | AD70: 6.834255048e-10 | AE70: 5.968461449e-09 | AF70: 0.0005490057406 | AG70: 0.002390194539 | AH70: 1.131293056e-07 | AI70: 3.520293301e-08 | AJ70: 2.453953451e-17 | AK70: 0.001960643771 | AL70: 7.612126723e-08 | AM70: 0.0005325343749 | AN70: 5.615700206e-09 | AO70: -0.01803086922 | AP70: -0.02053086922 | AQ70: 31 | AR70: 0.04299583911 | AS70: 0.04024400383 | AT70: 0.04788974028 | AU70: 0.04524697433 | AV70: 0.04478157295 | AW70: 0.04561145068 | AX70: 0.04682374623 | AY70: 0.0001223826645
A71: 1956-04-14T18:00:00 | B71: 3.18 | C71: 0.22 | D71: 0.22 | E71: 0.2212482663 | F71: 0.07169192846 | G71: 0.07169192846 | H71: 0.07222279768 | I71: -3.448288989 | J71: 670.4023178 | K71: 76.59910079 | L71: 0.02994523428 | M71: 1.41920733e-07 | N71: 17.75 | O71: 17.5 | P71: 0 | Q71: 0 | S71: 0.001044985134 | U71: 0.1775 | V71: 0.175 | W71: 1 | X71: 0.001386962552 | Y71: 4.439209798e-05 | Z71: 3.569297869e-08 | AA71: 6.171746545e-07 | AB71: 3.805848525e-08 | AC71: 0.0001476512532 | AD71: 3.041371278e-08 | AE71: 1.704914647e-08 | AF71: 0.0004590714503 | AG71: 0.002253311101 | AH71: 1.486257047e-08 | AI71: 1.117994042e-08 | AJ71: 3.809176452e-08 | AK71: 0.001824312139 | AL71: 3.787617051e-09 | AM71: 0.0004954893524 | AN71: 1.573711813e-08 | AO71: -0.01303086922 | AP71: -0.01553086922 | AQ71: 31 | AR71: 0.04299583911 | AS71: 0.04203074988 | AT71: 0.05132121373 | AU71: 0.05127827949 | AV71: 0.05083208272 | AW71: 0.05063773203 | AX71: 0.05110280097 | AY71: 9.121942958e-05
A72: 1956-05-15T04:30:00 | B72: 3.07 | C72: -0.11 | D72: 0.11 | E72: 0.1087517337 | F72: -0.03520363519 | G72: 0.03520363519 | H72: 0.03467276597 | I72: -3.483492624 | J72: 834.5765902 | K72: 88.64293605 | L72: 0.04324658755 | M72: 1.73752447e-09 | N72: 18.25 | O72: 18 | P72: 0 | Q72: 0 | S72: 0.0008675860365 | U72: 0.1825 | V72: 0.18 | W72: 1 | X72: 0.001386962552 | Y72: 2.857263761e-05 | Z72: 3.653907247e-08 | AA72: 3.058906248e-07 | AB72: 3.807557815e-08 | AC72: 0.0001173459554 | AD72: 3.191933272e-08 | AE72: 1.992722639e-08 | AF72: 0.0003838050706 | AG72: 0.002127604691 | AH72: 1.086239166e-08 | AI72: 3.362973233e-09 | AJ72: 3.80921939e-08 | AK72: 0.001700264061 | AL72: 1.943719517e-09 | AM72: 0.0004617923344 | AN72: 1.694930558e-08 | AO72: -0.008030869222 | AP72: -0.01053086922 | AQ72: 43 | AR72: 0.05963938974 | AS72: 0.04335536248 | AT72: 0.05392179889 | AU72: 0.05667206726 | AV72: 0.05711191488 | AW72: 0.0552048416 | AX72: 0.05448167028 | AY72: 6.774785773e-05
A73: 1956-06-14T15:00:00 | B73: 3 | C73: -0.07 | D73: 0.07 | E73: 0.0687517337 | F73: -0.02306527293 | G73: 0.02306527293 | H73: 0.02253440371 | I73: -3.506557897 | J73: 955.5298328 | K73: 97.012903 | L73: 0.05438424 | M73: 1.309412321e-10 | N73: 18.75 | O73: 18.5 | P73: 0 | Q73: 0 | S73: 0.0007213305644 | U73: 0.1875 | V73: 0.185 | W73: 0 | X73: 0 | Y73: 1.81637145e-05 | Z73: 6.533079695e-12 | AA73: 1.486404173e-07 | AB73: 4.375044289e-16 | AC73: 9.325825725e-05 | AD73: 1.722198524e-10 | AE73: 2.038228811e-09 | AF73: 0.0003208279211 | AG73: 0.002011904396 | AH73: 8.015364948e-08 | AI73: 9.572057591e-10 | AJ73: 1.814342307e-20 | AK73: 0.00158714641 | AL73: 4.988185599e-08 | AM73: 0.0004310679501 | AN73: 3.679595596e-09 | AO73: -0.003030869222 | AP73: -0.005530869222 | AQ73: 40 | AR73: 0.05547850208 | AS73: 0.04417008463 | AT73: 0.05554498374 | AU73: 0.05869581188 | AV73: 0.05814292317 | AW73: 0.05854467445 | AX73: 0.05665248839 | AY73: 5.013836142e-05
A74: 1956-07-15T01:30:00 | B74: 3.11 | C74: 0.11 | D74: 0.11 | E74: 0.1112482663 | F74: 0.03601043752 | G74: 0.03601043752 | H74: 0.03654130674 | I74: -3.47054746 | J74: 771.3894674 | K74: 84.11029118 | L74: 0.0378778165 | M74: 2.38069875e-09 | N74: 19.25 | O74: 19 | P74: 0 | Q74: 0 | S74: 0.0006005987567 | U74: 0.1925 | V74: 0.19 | W74: 0 | X74: 0 | Y74: 1.140430095e-05 | Z74: 2.575407528e-12 | AA74: 7.081419362e-08 | AB74: 9.930000036e-17 | AC74: 7.411345744e-05 | AD74: 1.087684074e-10 | AE74: 1.423787739e-09 | AF74: 0.0002681441419 | AG74: 0.00190518764 | AH74: 7.187603848e-08 | AI74: 2.575517577e-10 | AJ74: 1.313522929e-21 | AK74: 0.001483781402 | AL74: 4.359618316e-08 | AM74: 0.0004029936158 | AN74: 3.215917909e-09 | AO74: 0.001969130778 | AP74: -0.0005308692216 | AQ74: 42 | AR74: =AQ74/COUNTA(F$36:F$7000) -> 0.05825242718 | AS74: 0.04444504681 | AT74: 0.05609683183 | AU74: =GAMMADIST(AO74-$F$7,AF$30,AF$31,TRUE) -> 0.04875728854 | AV74: =AM$31*GAMMADIST((AO74-$F$7)^AI$29,AI$30,AI$31^AI$29,TRUE)+(1-AM$31)*(1-GAMMADIST(1/(AO74-$F$7)^AK$29,AK$30,1/AK$31^AK$29,TRUE)) -> 0.05720370298 | AW74: =GAMMADIST(ABS(AO74-$F$7)^AI$21,AI$22,AI$23^AI$21,TRUE) -> 0.05841439231 | AX74: 0.05740162442 | AY74: 3.697732856e-05 | AZ74: make AR74 this color
A75: 1956-08-14T12:00:00 | B75: 3.33 | C75: 0.22 | D75: 0.22 | E75: 0.2212482663 | F75: 0.0683495778 | G75: 0.0683495778 | H75: 0.06888044702 | I75: -3.402197882 | J75: 490.6226768 | K75: 62.20592395 | L75: 0.01783878348 | M75: 1.068011039e-07 | N75: 19.75 | O75: 19.5 | P75: 0 | Q75: 0 | S75: 0.0005008053412 | U75: 0.1975 | V75: 0.195 | W75: 0 | X75: 0 | Y75: 7.072001384e-06 | Z75: 9.903604669e-13 | AA75: 3.307625529e-08 | AB75: 2.166413196e-17 | AC75: 5.889784281e-05 | AD75: 6.86921958e-11 | AE75: 9.942915851e-10 | AF75: 0.0002240797292 | AG75: 0.001806558304 | AH75: 6.462679022e-08 | AI75: 6.544609299e-11 | AJ75: 8.48156651e-23 | AK75: 0.001389140588 | AL75: 3.821211036e-08 | AM75: 0.0003772891328 | AN75: 2.818754252e-09 | AO75: 0.006969130778 | AP75: 0.004469130778 | AQ75: 41 | AR75: 0.05686546463 | AS75: 0.04417008463 | AT75: 0.05554498374 | AU75: 0.05869581188 | AV75: 0.05814292317 | AW75: 0.05854467445 | AX75: 0.05665248839 | AY75: 2.717785543e-05
A76: 1956-09-13T22:30:00 | B76: 3.38 | C76: 0.05 | D76: 0.05 | E76: 0.0512482663 | F76: 0.0149034055 | G76: 0.0149034055 | H76: 0.01543427472 | I76: -3.387294476 | J76: 440.4911472 | K76: 57.89283131 | L76: 0.01493697085 | M76: 1.3518153e-11 | N76: 20.25 | O76: 20 | P76: 0 | Q76: 0 | S76: 0.0004182073046 | U76: 0.2025 | V76: 0.2 | W76: 0 | X76: 0 | Y76: 4.331373813e-06 | Z76: 3.715009724e-13 | AA76: 1.514694214e-08 | AB76: 4.543165472e-18 | AC76: 4.680537962e-05 | AD76: 4.338106062e-11 | AE76: 6.941682636e-10 | AF76: 0.0001872311334 | AG76: 0.001715228505 | AH76: 5.825760046e-08 | AI76: 1.569111507e-11 | AJ76: 4.875467174e-24 | AK76: 0.001302323173 | AL76: 3.35850623e-08 | AM76: 0.0003537095802 | AN76: 2.477434993e-09 | AO76: 0.01196913078 | AP76: 0.009469130778 | AQ76: 48 | AR76: 0.0665742025 | AS76: 0.04335536248 | AT76: 0.05392179889 | AU76: 0.05667206726 | AV76: 0.05711191488 | AW76: 0.0552048416 | AX76: 0.05448167028 | AY76: 1.990817977e-05
A77: 1956-10-14T09:00:00 | B77: 3.34 | C77: -0.04 | D77: 0.04 | E77: 0.0387517337 | F77: -0.01190490251 | G77: 0.01190490251 | H77: 0.01137403328 | I77: -3.399199379 | J77: 480.2336217 | K77: 61.32464481 | L77: 0.01722006325 | M77: 2.165144913e-12 | N77: 20.75 | O77: 20.5 | P77: 0 | Q77: 0 | S77: 0.0003497470812 | U77: 0.2075 | V77: 0.205 | W77: 0 | X77: 0 | Y77: 2.62010475e-06 | Z77: 1.359395822e-13 | AA77: 6.80058343e-09 | AB77: 9.158006928e-19 | AC77: 3.719524654e-05 | AD77: 2.73957696e-11 | AE77: 4.845114312e-10 | AF77: 0.0001564219527 | AG77: 0.001630503353 | AH77: 5.264437985e-08 | AI77: 3.546163363e-12 | AJ77: 2.490153385e-25 | AK77: 0.001222537867 | AL77: 2.959601654e-08 | AM77: 0.0003320399683 | AN77: 2.183179021e-09 | AO77: 0.01696913078 | AP77: 0.01446913078 | AQ77: 32 | AR77: 0.04438280166 | AS77: 0.04203074988 | AT77: 0.05132121373 | AU77: 0.05127827949 | AV77: 0.05083208272 | AW77: 0.05063773203 | AX77: 0.05110280097 | AY77: 1.453470417e-05
A78: 1956-11-13T19:30:00 | B78: 3.49 | C78: 0.15 | D78: 0.15 | E78: 0.1512482663 | F78: 0.04393092923 | G78: 0.04393092923 | H78: 0.04446179845 | I78: -3.35526845 | J78: 345.0602511 | K78: 49.19601849 | L78: 0.01000988067 | M78: 7.725420962e-09 | N78: 21.25 | O78: 21 | P78: 0 | Q78: 0 | S78: 0.0002929249636 | U78: 0.2125 | V78: 0.21 | W78: 0 | X78: 0 | Y78: 1.565385467e-06 | Z78: 4.852339924e-14 | AA78: 2.993504777e-09 | AB78: 1.774469476e-19 | AC78: 2.955802182e-05 | AD78: 1.730052781e-11 | AE78: 3.380936169e-10 | AF78: 0.0001306664749 | AG78: 0.001551768149 | AH78: 4.768285915e-08 | AI78: 7.547296121e-13 | AJ78: 1.127954035e-26 | AK78: 0.001149087632 | AL78: 2.614658191e-08 | AM78: 0.0003120909619 | AN78: 1.928728089e-09 | AO78: 0.02196913078 | AP78: 0.01946913078 | AQ78: 29 | AR78: 0.04022191401 | AS78: 0.04024400383 | AT78: 0.04788974028 | AU78: 0.04524697433 | AV78: 0.04478157295 | AW78: 0.04561145068 | AX78: 0.04682374623 | AY78: 1.057693467e-05
A79: 1956-12-14T06:00:00 | B79: 3.59 | C79: 0.1 | D79: 0.1 | E79: 0.1012482663 | F79: 0.02825046629 | G79: 0.02825046629 | H79: 0.02878133551 | I79: -3.327017983 | J79: 273.9042561 | K79: 42.17604517 | L79: 0.006867967383 | M79: 5.684151607e-10 | N79: 21.75 | O79: 21.5 | P79: 0 | Q79: 0 | S79: 0.0002456953946 | U79: 0.2175 | V79: 0.215 | W79: 0 | X79: 0 | Y79: 9.237056342e-07 | Z79: 1.689568512e-14 | AA79: 1.291892371e-09 | AB79: 3.30492257e-20 | AC79: 2.348877201e-05 | AD79: 1.092519625e-11 | AE79: 2.358677652e-10 | AF79: 0.0001091390038 | AG79: 0.001478477584 | AH79: 4.328506866e-08 | AI79: 1.51212376e-13 | AJ79: 4.527758939e-28 | AK79: 0.001081356818 | AL79: 2.315510033e-08 | AM79: 0.0002936953452 | AN79: 1.708058531e-09 | AO79: 0.02696913078 | AP79: 0.02446913078 | AQ79: 33 | AR79: 0.04576976422 | AS79: 0.03805791142 | AT79: 0.04381280509 | AU79: 0.03938758883 | AV79: 0.03956205594 | AW79: 0.04049916577 | AX79: 0.0419911245 | AY79: 7.672066231e-06
A80: 1957-01-13T16:30:00 | B80: 3.46 | C80: -0.13 | D80: 0.13 | E80: 0.1287517337 | F80: -0.03688361343 | G80: 0.03688361343 | H80: 0.03635274421 | I80: -3.363901597 | J80: 369.1867874 | K80: 51.46327655 | L80: 0.01118000385 | M80: 2.307933036e-09 | N80: 22.25 | O80: 22 | P80: 0 | Q80: 0 | S80: 0.0002063827207 | U80: 0.2225 | V80: 0.22 | W80: 0 | X80: 0 | Y80: 5.383386181e-07 | Z80: 5.73878154e-15 | AA80: 5.466194164e-10 | AB80: 5.916688839e-21 | AC80: 1.866564038e-05 | AD80: 6.8991313e-12 | AE80: 1.645142611e-10 | AF80: 9.114806738e-05 | AG80: 0.001410146594 | AH80: 3.937650329e-08 | AI80: 2.842170943e-14 | AJ80: 1.599591222e-29 | AK80: 0.001018800262 | AL80: 2.055354402e-08 | AM80: 0.000276705052 | AN80: 1.516152195e-09 | AO80: 0.03196913078 | AP80: 0.02946913078 | AQ80: 26 | AR80: 0.03606102635 | AS80: 0.03554663101 | AT80: 0.03929819917 | AU80: 0.03399627689 | AV80: 0.03497910995 | AW80: 0.03552593804 | AX80: 0.03693792308 | AY80: 5.547316315e-06
A81: 1957-02-13T03:00:00 | B81: 3.34 | C81: -0.12 | D81: 0.12 | E81: 0.1187517337 | F81: -0.03529778208 | G81: 0.03529778208 | H81: 0.03476691286 | I81: -3.399199379 | J81: 480.2336217 | K81: 61.32464481 | L81: 0.01722006325 | M81: 1.766024704e-09 | N81: 22.75 | O81: 22.5 | P81: 0 | Q81: 0 | S81: 0.0001736127706 | U81: 0.2275 | V81: 0.225 | W81: 0 | X81: 0 | Y81: 3.09875416e-07 | Z81: 1.901441058e-15 | AA81: 2.267548371e-10 | AB81: 1.018173389e-21 | AC81: 1.483281554e-05 | AD81: 4.356681524e-12 | AE81: 1.147218642e-10 | AF81: 7.611474327e-05 | AG81: 0.001346342578 | AH81: 3.589382849e-08 | AI81: 4.996003611e-15 | AJ81: 4.94258457e-31 | AK81: 0.0009609340391 | AL81: 1.828503421e-08 | AM81: 0.0002609886484 | AN81: 1.348813358e-09 | AO81: 0.03696913078 | AP81: 0.03446913078 | AQ81: 26 | AR81: 0.03606102635 | AS81: 0.03279152893 | AT81: 0.03455868816 | AU81: 0.02917164865 | AV81: 0.03081220273 | AW81: 0.03083232552 | AX81: 0.03194556417 | AY81: 3.998435108e-06
A82: 1957-03-15T13:30:00 | B82: 3.41 | C82: 0.07 | D82: 0.07 | E82: 0.0712482663 | F82: 0.02074148431 | G82: 0.02074148431 | H82: 0.02127235353 | I82: -3.378457895 | J82: 412.5170428 | K82: 55.41507566 | L82: 0.01341051257 | M82: 9.266020398e-11 | N82: 23.25 | O82: 23 | P82: 0 | Q82: 0 | S82: 0.0001462572856 | U82: 0.2325 | V82: 0.23 | W82: 0 | X82: 0 | Y82: 1.761685382e-07 | Z82: 6.145614624e-16 | AA82: 9.222311803e-11 | AB82: 1.684178911e-22 | AC82: 1.178698699e-05 | AD82: 2.751149747e-12 | AE82: 7.998353328e-11 | AF82: 6.355445249e-05 | AG82: 0.001286678774 | AH82: 3.27830152e-08 | AI82: 7.771561172e-16 | AJ82: 1.195983427e-32 | AK82: 0.00090732757 | AL82: 1.630184791e-08 | AM82: 0.0002464291892 | AN82: 1.202521689e-09 | AO82: 0.04196913078 | AP82: 0.03946913078 | AQ82: 27 | AR82: 0.0374479889 | AS82: 0.02987683657 | AT82: 0.02979578644 | AU82: 0.02492493719 | AV82: 0.02692313985 | AW82: 0.02650251928 | AX82: 0.02722459989 | AY82: 2.873105121e-06
A83: 1957-04-15 | B83: 3.48 | C83: 0.07 | D83: 0.07 | E83: 0.0712482663 | F83: 0.02032000249 | G83: 0.02032000249 | H83: 0.02085087171 | I83: -3.358137892 | J83: 352.9518422 | K83: 49.94326938 | L83: 0.01038689152 | M83: 8.217605671e-11 | N83: 23.75 | O83: 23.5 | P83: 0 | Q83: 0 | S83: 0.0001233887729 | U83: 0.2375 | V83: 0.235 | W83: 0 | X83: 0 | Y83: 9.891888575e-08 | Z83: 1.937613061e-16 | AA83: 3.67736952e-11 | AB83: 2.677831007e-23 | AC83: 9.366575219e-06 | AD83: 1.737281808e-12 | AE83: 5.57532923e-11 | AF83: 5.306167413e-05 | AG83: 0.001230808572 | AH83: 2.999781663e-08 | AI83: 2.220446049e-16 | AJ83: 9.763130015e-34 | AK83: 0.0008575968738 | AL83: 1.456380986e-08 | AM83: 0.0002329223858 | AN83: 1.07431362e-09 | AO83: 0.04696913078 | AP83: 0.04446913078 | AQ83: 18 | AR83: 0.02496532594 | AS83: 0.02688544818 | AT83: 0.02518636302 | AU83: 0.02122713759 | AV83: 0.02325041771 | AW83: 0.02258081246 | AX83: 0.02291201634 | AY83: 2.058185479e-06
A84: 1957-05-15T10:30:00 | B84: 3.6 | C84: 0.12 | D84: 0.12 | E84: 0.1212482663 | F84: 0.03390155168 | G84: 0.03390155168 | H84: 0.0344324209 | I84: -3.324236341 | J84: 267.5183209 | K84: 41.51792945 | L84: 0.006609213964 | M84: 1.666500125e-09 | N84: 24.25 | O84: 24 | P84: 0 | Q84: 0 | S84: 0.0001042438123 | U84: 0.2425 | V84: 0.24 | W84: 0 | X84: 0 | Y84: 5.48579675e-08 | Z84: 5.959201185e-17 | AA84: 1.437627795e-11 | AB84: 4.09262114e-24 | AC84: 7.443169393e-06 | AD84: 1.097044963e-12 | AE84: 3.885613078e-11 | AF84: 4.429711734e-05 | AG84: 0.00117842064 | AH84: 2.749851889e-08 | AI84: 0 | AJ84: 0 | AK84: 0.0008113987809 | AL84: 1.303698974e-08 | AM84: 0.0002203750336 | AN84: 9.616862461e-10 | AO84: 0.05196913078 | AP84: 0.04946913078 | AQ84: 8 | AR84: 0.01109570042 | AS84: 0.02389514515 | AT84: 0.02087320129 | AU84: 0.01803155943 | AV84: 0.01978686635 | AW84: 0.01908285729 | AX84: 0.01907983509 | AY84: 1.469960389e-06
A85: 1957-06-14T21:00:00 | B85: 3.8 | C85: 0.2 | D85: 0.2 | E85: 0.2012482663 | F85: 0.05406722127 | G85: 0.05406722127 | H85: 0.05459809049 | I85: -3.270169119 | J85: 163.4953502 | K85: 29.89993681 | L85: 0.002970091677 | M85: 2.648894881e-08 | N85: 24.75 | O85: 24.5 | P85: 0 | Q85: 0 | S85: 8.819321262e-05 | U85: 0.2475 | V85: 0.245 | W85: 0 | X85: 0 | Y85: 3.004760352e-08 | Z85: 1.787838568e-17 | AA85: 5.510258916e-12 | AB85: 6.012466004e-25 | AC85: 5.914720556e-06 | AD85: 6.927508762e-13 | AE85: 2.707515959e-11 | AF85: 3.697695985e-05 | AG85: 0.001129234723 | AH85: 2.525091206e-08 | AI85: 0 | AJ85: 0 | AK85: 0.0007684259546 | AL85: 1.169264253e-08 | AM85: 0.0002087036603 | AN85: 8.625191649e-10 | AO85: 0.05696913078 | AP85: 0.05446913078 | AQ85: 11 | AR85: 0.01525658807 | AS85: 0.02097547421 | AT85: 0.01695999247 | AU85: 0.01528527982 | AV85: 0.01655797199 | AW85: 0.01600399025 | AX85: 0.0157492488 | AY85: 1.046720975e-06
A86: 1957-07-15T07:30:00 | B86: 3.93 | C86: 0.13 | D86: 0.13 | E86: 0.1312482663 | F86: 0.03363835915 | G86: 0.03363835915 | H86: 0.03416922837 | I86: -3.23653076 | J86: 116.0001595 | K86: 23.78514067 | L86: 0.001700866397 | M86: 1.591516071e-09 | N86: 25.25 | O86: 25 | P86: 0 | Q86: 0 | S86: =1-LOGNORMDIST(N85,S$31,S$32) -> 0.0005152917354 | U86: 0.2525 | V86: 0.25 | W86: 2 | X86: 0.002773925104 | Y86: =2*( 1-NORMDIST($U85,Y$29,Y$30,TRUE)) -> 3.438327245e-08 | Z86: 1.523657372e-07 | AA86: =2*( 1-NORMDIST(U85,AA$29,AA$30,TRUE)) -> 3.257616399e-12 | AB86: 1.523695142e-07 | AC86: =2*(1-1/(1+EXP(-AC$30*U85))) -> 2.2888097e-05 | AD86: 1.498654379e-07 | AE86: 1.325908346e-07 | AF86: =(1-GAMMADIST(U85,AF$30,AF$31,TRUE)) -> 0.0001862935329 | AG86: =1-(1-GAMMADIST(1/U85,AG$30,1/AG$31,TRUE)) -> 0.04942845518 | AH86: 4.310188469e-05 | AI86: =(1-GAMMADIST($U85^AI$29,AI$30,AI$31^AI$29,TRUE)) -> 0 | AJ86: 1.523695145e-07 | AK86: =1-(1-GAMMADIST((1/U85)^AK$29,AK$30,(1/AK$31)^AK$29,TRUE)) -> 0.02021296584 | AL86: 6.022181023e-06 | AM86: 0.005489819716 | AN86: 1.460610603e-07 | AO86: 0.06196913078 | AP86: 0.05946913078 | AQ86: 7 | AR86: 0.009708737864 | AS86: 0.01818543209 | AT86: 0.01351061861 | AU86: 0.01293508777 | AV86: 0.01360360669 | AW86: 0.01332560192 | AX86: 0.01290578573 | AY86: =(1-GAMMADIST($U85^$AI$21,$AI$22,$AI$23^$AI$21,TRUE)) -> 2.504930222e-06
A87: 1957-08-14T18:00:00 | B87: 3.93 | C87: 0 | D87: 0 | E87: 0.001248266297 | F87: 0 | G87: 0 | H87: 0.0005308692216 | I87: -3.23653076 | J87: 116.0001595 | K87: 23.78514067 | L87: 0.001700866397 | M87: 2.238336005e-20 | U87: 0.2575 | AO87: 0.06696913078 | AP87: 0.06446913078 | AQ87: 3 | AR87: 0.004160887656 | AS87: 0.01557202821 | AT87: 0.01055207315 | AU87: 0.01093052014 | AV87: 0.01096357219 | AW87: 0.01102005181 | AX87: 0.01051277513
A88: 1957-09-14T04:30:00 | B88: 3.92 | C88: -0.01 | D88: 0.01 | E88: 0.008751733703 | F88: -0.002547772079 | G88: 0.002547772079 | H88: 0.002016902857 | I88: -3.239078532 | J88: 119.1876701 | K88: 24.21888919 | L88: 0.001777522767 | M88: 6.731469577e-17 | U88: 0.2625 | AO88: 0.07196913078 | AP88: 0.06946913078 | AQ88: 9 | AR88: 0.01248266297 | AS88: 0.01316971748 | AT88: 0.008080036528 | AU88: 0.009225302555 | AV88: 0.008667196475 | AW88: 0.009054434324 | AX88: 0.008521930817
A89: 1957-10-14T15:00:00 | B89: 3.97 | C89: 0.05 | D89: 0.05 | E89: 0.0512482663 | F89: 0.0126744409 | G89: 0.0126744409 | H89: 0.01320531012 | I89: -3.226404091 | J89: 103.9509356 | K89: 22.10814317 | L89: 0.001422828291 | M89: 5.302633714e-12 | U89: 0.2675 | AO89: 0.07696913078 | AP89: 0.07446913078 | AQ89: 9 | AR89: 0.01248266297 | AS89: 0.01100062736 | AT89: 0.006065991813 | AU89: 0.007777899524 | AV89: 0.006727150303 | AW89: 0.007393414273 | AX89: 0.006880905034
A90: 1957-11-14T01:30:00 | B90: 3.72 | C90: -0.25 | D90: 0.25 | E90: 0.2487517337 | F90: -0.06504242641 | G90: 0.06504242641 | H90: 0.06451155719 | I90: -3.291446518 | J90: 200.0606344 | K90: 34.20643081 | L90: 0.004121462326 | M90: 7.208172157e-08 | U90: 0.2725 | AO90: 0.08196913078 | AP90: 0.07946913078 | AQ90: 2 | AR90: 0.002773925104 | AS90: 0.009075449943 | AT90: 0.004464812983 | AU90: 0.006551567868 | AV90: 0.005137353065 | AW90: 0.00600130524 | AX90: 0.005538209838
A91: 1957-12-14T12:00:00 | B91: 3.21 | C91: -0.51 | D91: 0.51 | E91: 0.5087517337 | F91: -0.1474527311 | G91: 0.1474527311 | H91: 0.1469218619 | I91: -3.438899249 | J91: 630.6326811 | K91: 73.53898797 | L91: 0.02704247976 | M91: 1.005816002e-05 | U91: 0.2775 | AO91: 0.08696913078 | AP91: 0.08446913078 | AQ91: 3 | AR91: 0.004160887656 | AS91: 0.007394836799 | AT91: 0.003221941667 | AU91: 0.005514140587 | AV91: 0.003874400581 | AW91: 0.00484353594 | AX91: 0.004446099688
A92: 1958-01-13T22:30:00 | B92: 3.09 | C92: -0.12 | D92: 0.12 | E92: 0.1187517337 | F92: -0.03809984623 | G92: 0.03809984623 | H92: 0.03756897701 | I92: -3.476999095 | J92: 802.4648806 | K92: 86.35431097 | L92: 0.04047941335 | M92: 2.81174685e-09 | U92: 0.2825 | AO92: 0.09196913078 | AP92: 0.08946913078 | AQ92: 2 | AR92: 0.002773925104 | AS92: 0.005951120392 | AT92: 0.002279528431 | AU92: 0.004637674187 | AV92: 0.002901540968 | AW92: 0.003887629062 | AX92: 0.003562003911
A93: 1958-02-13T09:00:00 | B93: 3.05 | C93: -0.04 | D93: 0.04 | E93: 0.0387517337 | F93: -0.01302950029 | G93: 0.01302950029 | H93: 0.01249863107 | I93: -3.490028595 | J93: 867.7520602 | K93: 90.97675363 | L93: 0.04618926718 | M93: 3.812191364e-12 | U93: 0.2875 | AO93: 0.09696913078 | AP93: 0.09446913078 | AQ93: 3 | AR93: 0.004160887656 | AS93: 0.004730190064 | AT93: 0.001581194455 | AU93: 0.003898037861 | AV93: 0.002173992382 | AW93: 0.00310379922 | AX93: 0.002849001879
A94: 1958-03-15T19:30:00 | B94: 2.98 | C94: -0.07 | D94: 0.07 | E94: 0.0687517337 | F94: -0.0232182901 | G94: 0.0232182901 | H94: 0.02268742088 | I94: -3.513246885 | J94: 992.6526378 | K94: 99.50957407 | L94: 0.05802798861 | M94: 1.363674649e-10 | U94: 0.2925 | AO94: 0.1019691308 | AP94: 0.09946913078 | AQ94: 3 | AR94: 0.004160887656 | AS94: 0.003713369432 | AT94: 0.001075321853 | AU94: 0.003274490352 | AV94: 0.001644408525 | AW94: 0.002465260552 | AX94: 0.002275713699
A95: 1958-04-15T06:00:00 | B95: 2.88 | C95: -0.1 | D95: 0.1 | E95: 0.0987517337 | F95: -0.03413300637 | G95: 0.03413300637 | H95: 0.03360213715 | I95: -3.547379892 | J95: 1196.798582 | K95: 112.7233907 | L95: 0.07994659248 | M95: 1.439465964e-09 | U95: 0.2975 | AO95: 0.1069691308 | AP95: 0.1044691308 | AQ95: 1 | AR95: 0.001386962552 | AS95: 0.002879170834 | AT95: 0.0007169759189 | AU95: 0.00274927053 | AV95: 0.001267537462 | AW95: 0.001948319566 | AX95: 0.001815868474
A96: 1958-05-15T16:30:00 | B96: 2.92 | C96: 0.04 | D96: 0.04 | E96: 0.0412482663 | F96: 0.01379332213 | G96: 0.01379332213 | H96: 0.01432419135 | I96: -3.53358657 | J96: 1111.308752 | K96: 107.2893193 | L96: 0.07038099304 | M96: 8.638148865e-12 | U96: 0.3025 | AO96: 0.1119691308 | AP96: 0.1094691308 | AQ96: 1 | AR96: 0.001386962552 | AS96: 0.002204836645 | AT96: 0.0004686877086 | AU96: 0.00230721572 | AV96: 0.001003501846 | AW96: 0.001532315225 | AX96: 0.001447723295
A97: 1958-06-15T03:00:00 | B97: 2.97 | C97: 0.05 | D97: 0.05 | E97: 0.0512482663 | F97: 0.01697833653 | G97: 0.01697833653 | H97: 0.01750920576 | I97: -3.516608233 | J97: 1011.659956 | K97: 100.7758276 | L97: 0.05993446146 | M97: 2.881367662e-11 | U97: 0.3075 | AO97: 0.1169691308 | AP97: 0.1144691308 | AQ97: 1 | AR97: 0.001386962552 | AS97: 0.001667612372 | AT97: 0.0003003830653 | AU97: 0.0019354144 | AV97: 0.0008195390416 | AW97: 0.00119945597 | AX97: 0.001153440616
A98: 1958-07-15T13:30:00 | B98: 3.2 | C98: 0.23 | D98: 0.23 | E98: 0.2312482663 | F98: 0.07458885699 | G98: 0.07458885699 | H98: 0.07511972621 | I98: -3.442019376 | J98: 643.6645582 | K98: 74.54864102 | L98: 0.02797978679 | M98: 1.796900288e-07 | U98: 0.3125 | AO98: 0.1219691308 | AP98: 0.1194691308 | AQ98: 0 | AR98: 0 | AS98: 0.001245728793 | AT98: 0.0001887470614 | AU98: 0.001622895437 | AV98: 0.0006903754832 | AW98: 0.0009345926126 | AX98: 0.000918486248
A99: 1958-08-15 | B99: 3.54 | C99: 0.34 | D99: 0.34 | E99: 0.3412482663 | F99: 0.1009759173 | G99: 0.1009759173 | H99: 0.1015067866 | I99: -3.341043459 | J99: =($B99-$B$7)^6 -> 307.7721925 | K99: =($B99-$B$7)^4 -> 45.58475086 | L99: =($I99-$I$7)^6 -> 0.008304905813 | M99: 1.093882001e-06 | U99: 0.3175 | AO99: 0.1269691308 | AP99: 0.1244691308 | AQ99: 1 | AR99: 0.001386962552 | AS99: 0.0009190975301 | AT99: 0.0001162780696 | AU99: 0.001360353402 | AV99: 0.0005976106324 | AW99: 0.0007249567794 | AX99: 0.0007310803617
A100: 1958-09-14T10:30:00 | B100: 3.76 | C100: 0.22 | D100: 0.22 | E100: 0.2212482663 | F100: 0.06029223026 | G100: 0.06029223026 | H100: 0.06082309948 | I100: =LN(B100/100) -> -3.280751229 | J100: 181.009802 | K100: 31.9988764 | L100: 0.003503509031 | M100: 5.063039146e-08 | U100: 0.3225 | AO100: 0.1319691308 | AP100: 0.1294691308 | AQ100: 2 | AR100: =AQ100/COUNTA(F$36:F$7000) -> 0.002773925104 | AS100: 0.0006697448693 | AT100: 7.023090661e-05 | AU100: 0.001139907979 | AV100: 0.0005285435239 | AW100: 0.0005598868226 | AX100: 0.0005817151191
A101: =A100+30.4375 -> 1958-10-14T21:00:00 | B101: 3.8 | C101: =B101-B100 -> 0.04 | D101: =ABS(C101) -> 0.04 | E101: =ABS(C101-C$7) -> 0.0412482663 | F101: 0.01058210933 | G101: =ABS(F101) -> 0.01058210933 | H101: =ABS(F101-F$7) -> 0.01111297855 | I101: -3.270169119 | J101: 163.4953502 | K101: 29.89993681 | L101: 0.002970091677 | M101: =(F101-F$7)^6 -> 1.883574737e-12 | U101: =U100+0.005 -> 0.3275 | AO101: =AO100+0.005 -> 0.1369691308 | AP101: =AP100+0.005 -> 0.1344691308 | AQ101: 0 | AR101: 0 | AS101: =NORMDIST(AO101,F$7,F$9,TRUE)-NORMDIST(AO100,F$7,F$9,TRUE) -> 0.0004820220323 | AT101: =NORMDIST(AO101,F$7,AA$30,TRUE)-NORMDIST(AO100,F$7,AA$30,TRUE) -> 4.158833844e-05 | AU101: =IF(AO101 <$F$7,0.5*(1-GAMMADIST(ABS(AO101-$F$7),AF$30,AF$31,TRUE))-0.5*(1-GAMMADIST(ABS(AO100-$F$7),AF$30,AF$31,TRUE)),0.5*(GAMMADIST(ABS(AO101-$F$7),AF$30,AF$31,TRUE))-0.5*( GAMMADIST(ABS(AO100-$F$7),AF$30,AF$31,TRUE))) -> 0.000954894729 | AV101: =AM$31*(IF(AO101 <$F$7,0.5*(1-GAMMADIST(ABS(AO101-$F$7)^AI$29,AI$30,AI$31^AI$29,TRUE))-0.5*(1-GAMMADIST(ABS(AO100-$F$7)^AI$29,AI$30,AI$31^AI$29,TRUE)),0.5*(GAMMADIST(ABS(AO101-$F$7)^AI$29,AI$30,AI$31^AI$29,TRUE))-0.5*( GAMMADIST(ABS(AO100-$F$7)^AI$29,AI$30,AI$31^AI$29,TRUE))))+(1-AM$31)*(IF(AO101 <$F$7,0.5*(GAMMADIST(1/ABS(AO101-$F$7)^AK$29,AK$30,1/AK$31^AK$29,TRUE))-0.5*(GAMMADIST(1/ABS(AO100-$F$7)^AK$29,AK$30,1/AK$31^AK$29,TRUE)),0.5*((1-GAMMADIST(1/ABS(AO101-$F$7)^AK$29,AK$30,1/AK$31^AK$29,TRUE)))-0.5*( (1-GAMMADIST(1/ABS(AO100-$F$7)^AK$29,AK$30,1/AK$31^AK$29,TRUE))))) -> 0.000474821147 | AW101: =IF(AO101 <$F$7,0.5*(1-GAMMADIST(ABS(AO101-$F$7)^AI$21,AI$22,AI$23^AI$21,TRUE))-0.5*(1-GAMMADIST(ABS(AO100-$F$7)^AI$21,AI$22,AI$23^AI$21,TRUE)),0.5*(GAMMADIST(ABS(AO101-$F$7)^AI$21,AI$22,AI$23^AI$21,TRUE))-0.5*( GAMMADIST(ABS(AO100-$F$7)^AI$21,AI$22,AI$23^AI$21,TRUE))) -> 0.0004305567659 | AX101: =1/(1+EXP(-$AC$30*(AO101-$F$7)))-1/(1+EXP(-$AC$30*(AO100-$F$7))) -> 0.0004627414831
A102: 1958-11-14T07:30:00 | B102: 3.74 | C102: -0.06 | D102: 0.06 | E102: 0.0587517337 | F102: =LN(B102/B101) -> -0.01591545531 | G102: 0.01591545531 | H102: 0.01538458608 | I102: -3.286084575 | J102: 190.3366714 | K102: 33.08884795 | L102: 0.003801208742 | M102: 1.325912599e-11 | U102: 0.3325 | AO102: 0.1419691308 | AP102: 0.1394691308 | AQ102: 1 | AR102: 0.001386962552 | AS102: 0.0003426368582 | AT102: 2.414502632e-05 | AU102: 0.0007996841557 | AV102: 0.0004311743776 | AW102: 0.0003297187677 | AX102: 0.000368021612
A103: 1958-12-14T18:00:00 | B103: 3.86 | C103: 0.12 | D103: 0.12 | E103: 0.1212482663 | F103: 0.03158157205 | G103: 0.03158157205 | H103: 0.03211244127 | I103: -3.254503003 | J103: 139.8853482 | K103: 26.94727279 | L103: 0.002305739758 | M103: 1.096579034e-09 | U103: 0.3375 | AO103: 0.1469691308 | AP103: 0.1444691308 | AQ103: 0 | AR103: 0 | AS103: 0.0002405531022 | AT103: 1.374347639e-05 | AU103: 0.0006695259277 | AV103: 0.0003943831221 | AW103: 0.000251465632 | AX103: 0.0002926402731
A104: 1959-01-14T04:30:00 | B104: 4.02 | C104: 0.16 | D104: 0.16 | E104: 0.1612482663 | F104: 0.04061471915 | G104: 0.04061471915 | H104: 0.04114558838 | I104: -3.213888283 | J104: 90.37319344 | K104: 20.13846753 | L104: 0.001132520536 | M104: 4.852210824e-09 | U104: 0.3425 | AO104: 0.1519691308 | AP104: 0.1494691308 | AQ104: 0 | AR104: 0 | AS104: 0.000166800572 | AT104: 7.669698761e-06 | AU104: 0.0005604152758 | AV104: 0.000362511157 | AW104: 0.0001910169027 | AX104: 0.000232667608
A105: 1959-02-13T15:00:00 | B105: 3.96 | C105: -0.06 | D105: 0.06 | E105: 0.0587517337 | F105: -0.01503787736 | G105: 0.01503787736 | H105: 0.01450700814 | I105: -3.228926161 | J105: 106.8606515 | K105: 22.51879834 | L105: 0.001488247511 | M105: 9.321099178e-12 | U105: 0.3475 | AO105: 0.1569691308 | AP105: 0.1544691308 | AQ105: 0 | AR105: 0 | AS105: 0.0001142335827 | AT105: 4.196360449e-06 | AU105: 0.0004689787515 | AV105: 0.0003343866829 | AW105: 0.0001445298795 | AX105: 0.0001849655705
A106: 1959-03-16T01:30:00 | B106: 3.99 | C106: 0.03 | D106: 0.03 | E106: 0.0312482663 | F106: 0.007547205635 | G106: 0.007547205635 | H106: 0.008078074857 | I106: -3.221378955 | J106: 98.32926632 | K106: 21.30370792 | L106: 0.001299608937 | M106: 2.778735695e-13 | U106: 0.3525 | AO106: 0.1619691308 | AP106: 0.1594691308 | AQ106: 0 | AR106: 0 | AS106: 7.726801318e-05 | AT106: 2.251023452e-06 | AU106: 0.0003923767981 | AV106: 0.0003092751303 | AW106: 0.0001089353531 | AX106: 0.0001470308995
A107: 1959-04-15T12:00:00 | B107: 4.12 | C107: 0.13 | D107: 0.13 | E107: 0.1312482663 | F107: 0.03206193246 | G107: 0.03206193246 | H107: 0.03259280168 | I107: -3.189317023 | J107: 67.61372177 | K107: 16.59675672 | L107: 0.0007043338155 | M107: 1.198754263e-09 | U107: 0.3575 | AO107: 0.1669691308 | AP107: 0.1644691308 | AQ107: 0 | AR107: 0 | AS107: 5.161968806e-05 | AT107: 1.183859036e-06 | AU107: 0.0003282208413 | AV107: 0.0002866863239 | AW107: 8.179682291e-05 | AX107: 0.0001168682978
A108: 1959-05-15T22:30:00 | B108: 4.31 | C108: 0.19 | D108: 0.19 | E108: 0.1912482663 | F108: 0.04508474075 | G108: 0.04508474075 | H108: 0.04561560998 | I108: -3.144232282 | J108: 37.36094055 | K108: 11.17579776 | L108: 0.0002634954732 | M108: 9.009089885e-09 | U108: 0.3625 | AO108: 0.1719691308 | AP108: 0.1694691308 | AQ108: 0 | AR108: 0 | AS108: 3.405968966e-05 | AT108: 6.104255291e-07 | AU108: 0.0002745028703 | AV108: 0.0002662671874 | AW108: 6.119133224e-05 | AX108: 9.288835771e-05
A109: 1959-06-15T09:00:00 | B109: 4.34 | C109: 0.03 | D109: 0.03 | E109: 0.0312482663 | F109: 0.006936443997 | G109: 0.006936443997 | H109: 0.007467313218 | I109: -3.137295838 | J109: 33.83047772 | K109: 10.46017026 | L109: 0.0002230445282 | M109: 1.733748945e-13 | U109: 0.3675 | AO109: 0.1769691308 | AP109: 0.1744691308 | AQ109: 1 | AR109: 0.001386962552 | AS109: 2.219604899e-05 | AT109: 3.085873272e-07 | AU109: 0.0002295357252 | AV109: 0.0002477446762 | AW109: 4.560971479e-05 | AX109: 7.382562659e-05
A110: 1959-07-15T19:30:00 | B110: 4.4 | C110: 0.06 | D110: 0.06 | E110: 0.0612482663 | F110: 0.01373019281 | G110: 0.01373019281 | H110: 0.01426106203 | I110: -3.123565645 | J110: 27.59868023 | K110: 9.132553177 | L110: 0.000158089048 | M110: 8.412231467e-12 | U110: 0.3725 | AO110: 0.1819691308 | AP110: 0.1794691308 | AQ110: 1 | AR110: 0.001386962552 | AS110: 1.42863188e-05 | AT110: 1.529453124e-07 | AU110: 0.0001919025353 | AV110: 0.0002308961672 | AW110: 3.387392886e-05 | AX110: 5.867297768e-05
A111: 1959-08-15T06:00:00 | B111: 4.43 | C111: 0.03 | D111: 0.03 | E111: 0.0312482663 | F111: 0.006795043133 | G111: 0.006795043133 | H111: 0.007325912354 | I111: -3.116770602 | J111: 24.86149475 | K111: 8.51827175 | L111: 0.0001323188086 | M111: 1.54586054e-13 | U111: 0.3775 | AO111: 0.1869691308 | AP111: 0.1844691308 | AQ111: 0 | AR111: 0 | AS111: 9.081857252e-06 | AT111: 7.432020865e-08 | AU111: 0.0001604139605 | AV111: 0.0002155339751 | AW111: 2.506918071e-05 | AX111: 4.662912862e-05
A112: 1959-09-14T16:30:00 | B112: 4.68 | C112: 0.25 | D112: 0.25 | E112: 0.2512482663 | F112: 0.05489852587 | G112: 0.05489852587 | H112: 0.05542939509 | I112: -3.061872076 | J112: 9.621616779 | K112: 4.523751119 | L112: 2.486112775e-05 | M112: 2.900286057e-08 | U112: 0.3825 | AO112: 0.1919691308 | AP112: 0.1894691308 | AQ112: 0 | AR112: 0 | AS112: 5.702150475e-06 | AT112: 3.540709681e-08 | AU112: 0.0001340720709 | AV112: 0.0002014968079 | AW112: 1.848866428e-05 | AX112: 3.705672872e-05
A113: 1959-10-15T03:00:00 | B113: 4.53 | C113: -0.15 | D113: 0.15 | E113: 0.1487517337 | F113: -0.03257617043 | G113: 0.03257617043 | H113: 0.03204530121 | I113: -3.094448246 | J113: 17.31225402 | K113: 6.692202552 | L113: 7.084332603e-05 | M113: 1.082894502e-09 | U113: 0.3875 | AP113: 0.1944691308 | AQ113: 0 | AR113: =AQ113/COUNTA(F$36:F$7000) -> 0 | AS113: =1-NORMDIST(AO112,F$7,F$9,TRUE) -> 8.877580675e-06 | AT113: =1-NORMDIST(AO112,F$7,AA$30,TRUE) -> 3.011734662e-08 | AU113: =0.5*(1)-0.5*( GAMMADIST(ABS(AO112-$F$7),AF$30,AF$31,TRUE)) -> 0.0006794924206 | AV113: =AM$31*(0.5*(1)-0.5*( GAMMADIST(ABS(AO112-$F$7)^AI$29,AI$30,AI$31^AI$29,TRUE)))+(1-AM$31)*(0.5*((1))-0.5*( (1-GAMMADIST(1/ABS(AO112-$F$7)^AK$29,AK$30,1/AK$31^AK$29,TRUE)))) -> 0.004302384337 | AW113: =0.5*(1)-0.5*( GAMMADIST(ABS(AO112-$F$7)^AI$21,AI$22,AI$23^AI$21,TRUE)) -> 4.968419694e-05 | AX113: =1-1/(1+EXP(-$AC$30*(AO112-$F$7))) -> 0.0001434216339
A114: 1959-11-14T13:30:00 | B114: 4.53 | C114: 0 | D114: 0 | E114: 0.001248266297 | F114: 0 | G114: 0 | H114: 0.0005308692216 | I114: -3.094448246 | J114: 17.31225402 | K114: 6.692202552 | L114: 7.084332603e-05 | M114: 2.238336005e-20 | U114: 0.3925
A115: 1959-12-15 | B115: 4.69 | C115: 0.16 | D115: 0.16 | E115: 0.1612482663 | F115: 0.03471064296 | G115: 0.03471064296 | H115: 0.03524151218 | I115: -3.059737604 | J115: 9.232496173 | K115: 4.400946518 | L115: 2.305468069e-05 | M115: 1.915698734e-09 | U115: 0.3975
A116: 1960-01-14T10:30:00 | B116: 4.72 | C116: 0.03 | D116: 0.03 | E116: 0.0312482663 | F116: 0.006376217139 | G116: 0.006376217139 | H116: 0.006907086361 | I116: -3.053361386 | J116: 8.142919136 | K116: 4.04749898 | L116: 1.829634084e-05 | M116: 1.085848702e-13 | U116: 0.4025
A117: 1960-02-13T21:00:00 | B117: 4.49 | C117: -0.23 | D117: 0.23 | E117: 0.2287517337 | F117: -0.04995609784 | G117: 0.04995609784 | H117: 0.04942522862 | I117: -3.103317484 | J117: 20.06157962 | K117: 7.38317933 | L117: 9.15182146e-05 | M117: 1.457780448e-08 | U117: 0.4075
A118: 1960-03-15T07:30:00 | B118: 4.25 | C118: -0.24 | D118: 0.24 | E118: 0.2387517337 | F118: -0.05493371882 | G118: 0.05493371882 | H118: 0.0544028496 | I118: -3.158251203 | J118: 45.34764904 | K118: 12.71656605 | L118: 0.0003640781898 | M118: 2.592566414e-08 | U118: 0.4125
A119: 1960-04-14T18:00:00 | B119: 4.28 | C119: 0.03 | D119: 0.03 | E119: 0.0312482663 | F119: 0.007034026657 | G119: 0.007034026657 | H119: 0.007564895879 | I119: -3.151217176 | J119: 41.19323116 | K119: 11.92753151 | L119: 0.0003102299115 | M119: 1.87420775e-13 | U119: 0.4175
A120: 1960-05-15T04:30:00 | B120: 4.35 | C120: 0.07 | D120: 0.07 | E120: 0.0712482663 | F120: 0.01622283551 | G120: 0.01622283551 | H120: 0.01675370473 | I120: -3.134994341 | J120: 32.71736209 | K120: 10.22944772 | L120: 0.0002108260871 | M120: 2.211388987e-11 | U120: 0.4225
A121: 1960-06-14T15:00:00 | B121: 4.15 | C121: -0.2 | D121: 0.2 | E121: 0.1987517337 | F121: -0.04706751086 | G121: 0.04706751086 | H121: 0.04653664164 | I121: -3.182061852 | J121: 61.80360589 | K121: 15.63180791 | L121: 0.0006075958956 | M121: 1.01571118e-08 | U121: 0.4275
A122: 1960-07-15T01:30:00 | B122: 3.9 | C122: -0.25 | D122: 0.25 | E122: 0.2487517337 | F122: -0.06213178111 | G122: 0.06213178111 | H122: 0.06160091189 | I122: -3.244193633 | J122: 125.7819848 | K122: 25.10415623 | L122: 0.001940137584 | M122: 5.464152942e-08 | U122: 0.4325
A123: 1960-08-14T12:00:00 | B123: 3.8 | C123: -0.1 | D123: 0.1 | E123: 0.0987517337 | F123: -0.0259754864 | G123: 0.0259754864 | H123: 0.02544461718 | I123: -3.270169119 | J123: 163.4953502 | K123: 29.89993681 | L123: 0.002970091677 | M123: 2.713785561e-10 | U123: 0.4375
A124: 1960-09-13T22:30:00 | B124: 3.8 | C124: 0 | D124: 0 | E124: 0.001248266297 | F124: 0 | G124: 0 | H124: 0.0005308692216 | I124: -3.270169119 | J124: 163.4953502 | K124: 29.89993681 | L124: 0.002970091677 | M124: 2.238336005e-20 | U124: 0.4425
A125: 1960-10-14T09:00:00 | B125: 3.89 | C125: 0.09 | D125: 0.09 | E125: 0.0912482663 | F125: 0.0234080909 | G125: 0.0234080909 | H125: 0.02393896012 | I125: -3.246761028 | J125: 129.1914447 | K125: 25.55578171 | L125: 0.002026316733 | M125: 1.882052298e-10 | U125: 0.4475
A126: 1960-11-13T19:30:00 | B126: 3.93 | C126: 0.04 | D126: 0.04 | E126: 0.0412482663 | F126: 0.01023026825 | G126: 0.01023026825 | H126: 0.01076113747 | I126: -3.23653076 | J126: 116.0001595 | K126: 23.78514067 | L126: 0.001700866397 | M126: 1.552919978e-12 | U126: 0.4525
A127: 1960-12-14T06:00:00 | B127: 3.84 | C127: -0.09 | D127: 0.09 | E127: 0.0887517337 | F127: -0.02316705928 | G127: 0.02316705928 | H127: 0.02263619006 | I127: -3.259697819 | J127: 147.4165152 | K127: 27.90598954 | L127: 0.002510666555 | M127: 1.345302628e-10 | U127: 0.4575
A128: 1961-01-13T16:30:00 | B128: 3.84 | C128: 0 | D128: 0 | E128: 0.001248266297 | F128: 0 | G128: 0 | H128: 0.0005308692216 | I128: -3.259697819 | J128: 147.4165152 | K128: 27.90598954 | L128: 0.002510666555 | M128: 2.238336005e-20 | U128: 0.4625
A129: 1961-02-13T03:00:00 | B129: 3.78 | C129: -0.06 | D129: 0.06 | E129: 0.0587517337 | F129: -0.01574835697 | G129: 0.01574835697 | H129: 0.01521748775 | I129: -3.275446176 | J129: 172.0669464 | K129: 30.9360576 | L129: 0.003226922235 | M129: 1.241817467e-11 | U129: 0.4675
A130: 1961-03-15T13:30:00 | B130: 3.74 | C130: -0.04 | D130: 0.04 | E130: 0.0387517337 | F130: -0.01063839821 | G130: 0.01063839821 | H130: 0.01010752898 | I130: -3.286084575 | J130: 190.3366714 | K130: 33.08884795 | L130: 0.003801208742 | M130: 1.06627683e-12 | U130: 0.4725
A131: 1961-04-15 | B131: 3.78 | C131: 0.04 | D131: 0.04 | E131: 0.0412482663 | F131: 0.01063839821 | G131: 0.01063839821 | H131: 0.01116926743 | I131: -3.275446176 | J131: 172.0669464 | K131: 30.9360576 | L131: 0.003226922235 | M131: 1.94154802e-12 | U131: 0.4775
A132: 1961-05-15T10:30:00 | B132: 3.71 | C132: -0.07 | D132: 0.07 | E132: 0.0687517337 | F132: -0.01869213301 | G132: 0.01869213301 | H132: 0.01816126379 | I132: -3.294138309 | J132: 205.0757041 | K132: 34.77572084 | L132: 0.004290521357 | M132: 3.588197996e-11 | U132: 0.4825
A133: 1961-06-14T21:00:00 | B133: 3.88 | C133: 0.17 | D133: 0.17 | E133: 0.1712482663 | F133: 0.04480327702 | G133: 0.04480327702 | H133: 0.04533414624 | I133: -3.249335032 | J133: 132.6775734 | K133: 26.01347354 | L133: 0.00211589668 | M133: 8.680658022e-09 | U133: 0.4875
A134: 1961-07-15T07:30:00 | B134: 3.92 | C134: 0.04 | D134: 0.04 | E134: 0.0412482663 | F134: 0.01025650017 | G134: 0.01025650017 | H134: 0.01078736939 | I134: -3.239078532 | J134: 119.1876701 | K134: 24.21888919 | L134: 0.001777522767 | M134: 1.575771721e-12 | U134: 0.4925
A135: 1961-08-14T18:00:00 | B135: 4.04 | C135: 0.12 | D135: 0.12 | E135: 0.1212482663 | F135: 0.03015303817 | G135: 0.03015303817 | H135: 0.03068390739 | I135: -3.208925494 | J135: 85.37317045 | K135: 19.38865159 | L135: 0.00103200148 | M135: 8.345723266e-10 | U135: 0.4975
A136: 1961-09-14T04:30:00 | B136: 3.98 | C136: -0.06 | D136: 0.06 | E136: 0.0587517337 | F136: -0.01496287268 | G136: 0.01496287268 | H136: 0.01443200346 | I136: -3.223888367 | J136: 101.1075456 | K136: 21.70313034 | L136: 0.00135997874 | M136: 9.035657179e-12 | U136: 0.5025
A137: 1961-10-14T15:00:00 | B137: 3.92 | C137: -0.06 | D137: 0.06 | E137: 0.0587517337 | F137: -0.01519016549 | G137: 0.01519016549 | H137: 0.01465929627 | I137: -3.239078532 | J137: 119.1876701 | K137: 24.21888919 | L137: 0.001777522767 | M137: 9.923816691e-12 | U137: 0.5075
A138: 1961-11-14T01:30:00 | B138: 3.94 | C138: 0.02 | D138: 0.02 | E138: 0.0212482663 | F138: 0.005089069507 | G138: 0.005089069507 | H138: 0.005619938729 | I138: -3.233989463 | J138: 112.8840057 | K138: 23.35724456 | L138: 0.001627169226 | M138: 3.150572547e-14 | U138: 0.5125
A139: 1961-12-14T12:00:00 | B139: 4.06 | C139: 0.12 | D139: 0.12 | E139: 0.1212482663 | F139: 0.0300022503 | G139: 0.0300022503 | H139: 0.03053311953 | I139: -3.203987212 | J139: 80.60583241 | K139: 18.65997159 | L139: 0.0009394711913 | M139: 8.102649762e-10 | U139: 0.5175
A140: 1962-01-13T22:30:00 | B140: 4.08 | C140: 0.02 | D140: 0.02 | E140: 0.0212482663 | F140: 0.004914014802 | G140: 0.004914014802 | H140: 0.005444884024 | I140: -3.199073198 | J140: 76.06243477 | K140: 17.95202656 | L140: 0.0008543641094 | M140: 2.605744335e-14 | U140: 0.5225
A141: 1962-02-13T09:00:00 | B141: 4.04 | C141: -0.04 | D141: 0.04 | E141: 0.0387517337 | F141: -0.009852296443 | G141: 0.009852296443 | H141: 0.009321427221 | I141: -3.208925494 | J141: 85.37317045 | K141: 19.38865159 | L141: 0.00103200148 | M141: 6.559858607e-13 | U141: 0.5275
A142: 1962-03-15T19:30:00 | B142: 3.93 | C142: -0.11 | D142: 0.11 | E142: 0.1087517337 | F142: -0.02760526609 | G142: 0.02760526609 | H142: 0.02707439687 | I142: -3.23653076 | J142: 116.0001595 | K142: 23.78514067 | L142: 0.001700866397 | M142: 3.938698561e-10 | U142: 0.5325
A143: 1962-04-15T06:00:00 | B143: 3.84 | C143: -0.09 | D143: 0.09 | E143: 0.0887517337 | F143: -0.02316705928 | G143: 0.02316705928 | H143: 0.02263619006 | I143: -3.259697819 | J143: 147.4165152 | K143: 27.90598954 | L143: 0.002510666555 | M143: 1.345302628e-10 | U143: 0.5375
A144: 1962-05-15T16:30:00 | B144: 3.87 | C144: 0.03 | D144: 0.03 | E144: 0.0312482663 | F144: 0.007782140442 | G144: 0.007782140442 | H144: 0.008313009664 | I144: -3.251915679 | J144: 136.2417441 | K144: 26.47728579 | L144: 0.002208996685 | M144: 3.300271828e-13 | U144: 0.5425
A145: 1962-06-15T03:00:00 | B145: 3.91 | C145: 0.04 | D145: 0.04 | E145: 0.0412482663 | F145: 0.01028286696 | G145: 0.01028286696 | H145: 0.01081373618 | I145: -3.241632812 | J145: 122.4478389 | K145: 24.65854326 | L145: 0.00185724362 | M145: 1.599022664e-12 | U145: 0.5475
A146: 1962-07-15T13:30:00 | B146: 4.01 | C146: 0.1 | D146: 0.1 | E146: 0.1012482663 | F146: 0.02525386732 | G146: 0.02525386732 | H146: 0.02578473654 | I146: -3.216378945 | J146: 92.96326369 | K146: 20.52142784 | L146: 0.001185962878 | M146: 2.938841676e-10 | U146: 0.5525
A147: 1962-08-15 | B147: 3.98 | C147: -0.03 | D147: 0.03 | E147: 0.0287517337 | F147: -0.007509422022 | G147: 0.007509422022 | H147: 0.006978552801 | I147: -3.223888367 | J147: 101.1075456 | K147: 21.70313034 | L147: 0.00135997874 | M147: 1.155027203e-13 | U147: 0.5575
A148: 1962-09-14T10:30:00 | B148: 3.98 | C148: 0 | D148: 0 | E148: 0.001248266297 | F148: 0 | G148: 0 | H148: 0.0005308692216 | I148: -3.223888367 | J148: 101.1075456 | K148: 21.70313034 | L148: 0.00135997874 | M148: 2.238336005e-20 | U148: 0.5625
A149: 1962-10-14T21:00:00 | B149: 3.93 | C149: -0.05 | D149: 0.05 | E149: 0.0487517337 | F149: -0.01264239342 | G149: 0.01264239342 | H149: 0.01211152419 | I149: -3.23653076 | J149: 116.0001595 | K149: 23.78514067 | L149: 0.001700866397 | M149: 3.156405608e-12 | U149: 0.5675
A150: 1962-11-14T07:30:00 | B150: 3.92 | C150: -0.01 | D150: 0.01 | E150: 0.008751733703 | F150: -0.002547772079 | G150: 0.002547772079 | H150: 0.002016902857 | I150: -3.239078532 | J150: 119.1876701 | K150: 24.21888919 | L150: 0.001777522767 | M150: 6.731469577e-17 | U150: 0.5725
A151: 1962-12-14T18:00:00 | B151: 3.86 | C151: -0.06 | D151: 0.06 | E151: 0.0587517337 | F151: -0.01542447033 | G151: 0.01542447033 | H151: 0.0148936011 | I151: -3.254503003 | J151: 139.8853482 | K151: 26.94727279 | L151: 0.002305739758 | M151: 1.091436083e-11 | U151: 0.5775
A152: 1963-01-14T04:30:00 | B152: 3.83 | C152: -0.03 | D152: 0.03 | E152: 0.0287517337 | F152: -0.007802380284 | G152: 0.007802380284 | H152: 0.007271511063 | I152: -3.262305383 | J152: 151.3069543 | K152: 28.39482912 | L152: 0.002619116041 | M152: 1.478250434e-13 | U152: 0.5825
A153: 1963-02-13T15:00:00 | B153: 3.92 | C153: 0.09 | D153: 0.09 | E153: 0.0912482663 | F153: 0.02322685061 | G153: 0.02322685061 | H153: 0.02375771983 | I153: -3.239078532 | J153: 119.1876701 | K153: 24.21888919 | L153: 0.001777522767 | M153: 1.798160855e-10 | U153: 0.5875
A154: 1963-03-16T01:30:00 | B154: 3.93 | C154: 0.01 | D154: 0.01 | E154: 0.0112482663 | F154: 0.002547772079 | G154: 0.002547772079 | H154: 0.0030786413 | I154: -3.23653076 | J154: 116.0001595 | K154: 23.78514067 | L154: 0.001700866397 | M154: 8.514409764e-16 | U154: 0.5925
A155: 1963-04-15T12:00:00 | B155: 3.97 | C155: 0.04 | D155: 0.04 | E155: 0.0412482663 | F155: 0.01012666882 | G155: 0.01012666882 | H155: 0.01065753804 | I155: -3.226404091 | J155: 103.9509356 | K155: 22.10814317 | L155: 0.001422828291 | M155: 1.465349932e-12 | U155: 0.5975
A156: 1963-05-15T22:30:00 | B156: 3.93 | C156: -0.04 | D156: 0.04 | E156: 0.0387517337 | F156: -0.01012666882 | G156: 0.01012666882 | H156: 0.009595799596 | I156: -3.23653076 | J156: 116.0001595 | K156: 23.78514067 | L156: 0.001700866397 | M156: 7.807050995e-13 | U156: 0.6025
A157: 1963-06-15T09:00:00 | B157: 3.99 | C157: 0.06 | D157: 0.06 | E157: 0.0612482663 | F157: 0.01515180502 | G157: 0.01515180502 | H157: 0.01568267424 | I157: -3.221378955 | J157: 98.32926632 | K157: 21.30370792 | L157: 0.001299608937 | M157: 1.487718381e-11 | U157: 0.6075
A158: 1963-07-15T19:30:00 | B158: 4.02 | C158: 0.03 | D158: 0.03 | E158: 0.0312482663 | F158: 0.007490671729 | G158: 0.007490671729 | H158: 0.008021540951 | I158: -3.213888283 | J158: 90.37319344 | K158: 20.13846753 | L158: 0.001132520536 | M158: 2.664077347e-13 | U158: 0.6125
A159: 1963-08-15T06:00:00 | B159: 4 | C159: -0.02 | D159: 0.02 | E159: 0.0187517337 | F159: -0.004987541511 | G159: 0.004987541511 | H159: 0.004456672289 | I159: -3.218875825 | J159: 95.61489958 | K159: 20.90982423 | L159: 0.001241631774 | M159: 7.835454677e-15 | U159: 0.6175
A160: 1963-09-14T16:30:00 | B160: 4.08 | C160: 0.08 | D160: 0.08 | E160: 0.0812482663 | F160: 0.0198026273 | G160: 0.0198026273 | H160: 0.02033349652 | I160: -3.199073198 | J160: 76.06243477 | K160: 17.95202656 | L160: 0.0008543641094 | M160: 7.067607032e-11 | U160: 0.6225
A161: 1963-10-15T03:00:00 | B161: 4.11 | C161: 0.03 | D161: 0.03 | E161: 0.0312482663 | F161: 0.007326040092 | G161: 0.007326040092 | H161: 0.007856909314 | I161: -3.191747157 | J161: 69.64870898 | K161: 16.92811941 | L161: 0.0007394722022 | M161: 2.352396056e-13 | U161: 0.6275
A162: 1963-11-14T13:30:00 | B162: 4.12 | C162: 0.01 | D162: 0.01 | E162: 0.0112482663 | F162: 0.002430134853 | G162: 0.002430134853 | H162: 0.002961004075 | I162: -3.189317023 | J162: 67.61372177 | K162: 16.59675672 | L162: 0.0007043338155 | M162: 6.739598583e-16 | U162: 0.6325
A163: 1963-12-15 | B163: 4.13 | C163: 0.01 | D163: 0.01 | E163: 0.0112482663 | F163: 0.002424243612 | G163: 0.002424243612 | H163: 0.002955112833 | I163: -3.186892779 | J163: =($B163-$B$7)^6 -> 65.62852606 | K163: =($B163-$B$7)^4 -> 16.27028275 | L163: =($I163-$I$7)^6 -> 0.0006706781403 | M163: 6.659542693e-16 | U163: 0.6375
A164: 1964-01-14T10:30:00 | B164: 4.17 | C164: 0.04 | D164: 0.04 | E164: 0.0412482663 | F164: 0.009638628838 | G164: 0.009638628838 | H164: 0.01016949806 | I164: =LN(B164/100) -> -3.17725415 | J164: 58.16628639 | K164: 15.01231119 | L164: 0.0005498052316 | M164: 1.106106913e-12 | U164: 0.6425
A165: =A164+30.4375 -> 1964-02-13T21:00:00 | B165: 4.15 | C165: =B165-B164 -> -0.02 | D165: =ABS(C165) -> 0.02 | E165: =ABS(C165-C$7) -> 0.0187517337 | F165: -0.004807701568 | G165: =ABS(F165) -> 0.004807701568 | H165: =ABS(F165-F$7) -> 0.004276832347 | I165: -3.182061852 | J165: 61.80360589 | K165: 15.63180791 | L165: 0.0006075958956 | M165: =(F165-F$7)^6 -> 6.119745427e-15 | U165: =U164+0.005 -> 0.6475
A166: 1964-03-15T07:30:00 | B166: 4.22 | C166: 0.07 | D166: 0.07 | E166: 0.0712482663 | F166: =LN(B166/B165) -> 0.01672679381 | G166: 0.01672679381 | H166: 0.01725766303 | I166: -3.165335058 | J166: 49.84550086 | K166: 13.54411532 | L166: 0.000425963968 | M166: 2.641751169e-11 | U166: 0.6525
A167: 1964-04-14T18:00:00 | B167: 4.23 | C167: 0.01 | D167: 0.01 | E167: 0.0112482663 | F167: 0.00236686501 | G167: 0.00236686501 | H167: 0.002897734232 | I167: -3.162968193 | J167: 48.30669993 | K167: 13.26391041 | L167: 0.0004043811958 | M167: 5.920403513e-16 | U167: 0.6575
A168: 1964-05-15T04:30:00 | B168: 4.2 | C168: -0.03 | D168: 0.03 | E168: 0.0287517337 | F168: -0.007117467769 | G168: 0.007117467769 | H168: 0.006586598547 | I168: -3.170085661 | J168: 53.04585694 | K168: 14.1178202 | L168: 0.0004721886039 | M168: 8.165206342e-14 | U168: 0.6625
A169: 1964-06-14T15:00:00 | B169: 4.17 | C169: -0.03 | D169: 0.03 | E169: 0.0287517337 | F169: -0.007168489479 | G169: 0.007168489479 | H169: 0.006637620257 | I169: -3.17725415 | J169: 58.16628639 | K169: 15.01231119 | L169: 0.0005498052316 | M169: 8.552132383e-14 | U169: 0.6675
A170: 1964-07-15T01:30:00 | B170: 4.19 | C170: 0.02 | D170: 0.02 | E170: 0.0212482663 | F170: 0.004784698123 | G170: 0.004784698123 | H170: 0.005315567345 | I170: -3.172469452 | J170: 54.70913323 | K170: 14.41141273 | L170: 0.0004969132653 | M170: 2.255785229e-14 | U170: 0.6725
A171: 1964-08-14T12:00:00 | B171: 4.19 | C171: 0 | D171: 0 | E171: 0.001248266297 | F171: 0 | G171: 0 | H171: 0.0005308692216 | I171: -3.172469452 | J171: 54.70913323 | K171: 14.41141273 | L171: 0.0004969132653 | M171: 2.238336005e-20 | U171: 0.6775
A172: 1964-09-13T22:30:00 | B172: 4.2 | C172: 0.01 | D172: 0.01 | E172: 0.0112482663 | F172: 0.002383791355 | G172: 0.002383791355 | H172: 0.002914660577 | I172: -3.170085661 | J172: 53.04585694 | K172: 14.1178202 | L172: 0.0004721886039 | M172: 6.130952069e-16 | U172: 0.6825
A173: 1964-10-14T09:00:00 | B173: 4.19 | C173: -0.01 | D173: 0.01 | E173: 0.008751733703 | F173: -0.002383791355 | G173: 0.002383791355 | H173: 0.001852922134 | I173: -3.172469452 | J173: 54.70913323 | K173: 14.41141273 | L173: 0.0004969132653 | M173: 4.04709142e-17 | U173: 0.6875
A174: 1964-11-13T19:30:00 | B174: 4.15 | C174: -0.04 | D174: 0.04 | E174: 0.0387517337 | F174: -0.009592399691 | G174: 0.009592399691 | H174: 0.00906153047 | I174: -3.182061852 | J174: 61.80360589 | K174: 15.63180791 | L174: 0.0006075958956 | M174: 5.536168893e-13 | U174: 0.6925
A175: 1964-12-14T06:00:00 | B175: 4.18 | C175: 0.03 | D175: 0.03 | E175: 0.0312482663 | F175: 0.007202912294 | G175: 0.007202912294 | H175: 0.007733781516 | I175: -3.174858939 | J175: 56.41564489 | K175: 14.70956076 | L175: 0.0005227704421 | M175: 2.13969264e-13 | U175: 0.6975
A176: 1965-01-13T16:30:00 | B176: 4.19 | C176: 0.01 | D176: 0.01 | E176: 0.0112482663 | F176: 0.002389487397 | G176: 0.002389487397 | H176: 0.002920356619 | I176: -3.172469452 | J176: 54.70913323 | K176: 14.41141273 | L176: 0.0004969132653 | M176: 6.203193534e-16 | U176: 0.7025
A177: 1965-02-13T03:00:00 | B177: 4.21 | C177: 0.02 | D177: 0.02 | E177: 0.0212482663 | F177: 0.00476191376 | G177: 0.00476191376 | H177: 0.005292782982 | I177: -3.167707538 | J177: 51.42493524 | K177: 13.82873653 | L177: 0.0004485528754 | M177: 2.198388901e-14 | U177: 0.7075
A178: 1965-03-15T13:30:00 | B178: 4.21 | C178: 0 | D178: 0 | E178: 0.001248266297 | F178: 0 | G178: 0 | H178: 0.0005308692216 | I178: -3.167707538 | J178: 51.42493524 | K178: 13.82873653 | L178: 0.0004485528754 | M178: 2.238336005e-20 | U178: 0.7125
A179: 1965-04-15 | B179: 4.2 | C179: -0.01 | D179: 0.01 | E179: 0.008751733703 | F179: -0.002378122405 | G179: 0.002378122405 | H179: 0.001847253183 | I179: -3.170085661 | J179: 53.04585694 | K179: 14.1178202 | L179: 0.0004721886039 | M179: 3.973365732e-17 | U179: 0.7175
A180: 1965-05-15T10:30:00 | B180: 4.21 | C180: 0.01 | D180: 0.01 | E180: 0.0112482663 | F180: 0.002378122405 | G180: 0.002378122405 | H180: 0.002908991627 | I180: -3.167707538 | J180: 51.42493524 | K180: 13.82873653 | L180: 0.0004485528754 | M180: 6.059751667e-16 | U180: 0.7225
A181: 1965-06-14T21:00:00 | B181: 4.21 | C181: 0 | D181: 0 | E181: 0.001248266297 | F181: 0 | G181: 0 | H181: 0.0005308692216 | I181: -3.167707538 | J181: 51.42493524 | K181: 13.82873653 | L181: 0.0004485528754 | M181: 2.238336005e-20 | U181: 0.7275
A182: 1965-07-15T07:30:00 | B182: 4.2 | C182: -0.01 | D182: 0.01 | E182: 0.008751733703 | F182: -0.002378122405 | G182: 0.002378122405 | H182: 0.001847253183 | I182: -3.170085661 | J182: 53.04585694 | K182: 14.1178202 | L182: 0.0004721886039 | M182: 3.973365732e-17 | U182: 0.7325
A183: 1965-08-14T18:00:00 | B183: 4.25 | C183: 0.05 | D183: 0.05 | E183: 0.0512482663 | F183: 0.01183445765 | G183: 0.01183445765 | H183: 0.01236532687 | I183: -3.158251203 | J183: 45.34764904 | K183: 12.71656605 | L183: 0.0003640781898 | M183: 3.574650666e-12 | U183: 0.7375
A184: 1965-09-14T04:30:00 | B184: 4.29 | C184: 0.04 | D184: 0.04 | E184: 0.0412482663 | F184: 0.009367750004 | G184: 0.009367750004 | H184: 0.009898619225 | I184: -3.148883453 | J184: 39.88103189 | K184: 11.67286845 | L184: 0.0002939041807 | M184: 9.406925622e-13 | U184: 0.7425
A185: 1965-10-14T15:00:00 | B185: 4.35 | C185: 0.06 | D185: 0.06 | E185: 0.0612482663 | F185: 0.01388911216 | G185: 0.01388911216 | H185: 0.01441998138 | I185: -3.134994341 | J185: 32.71736209 | K185: 10.22944772 | L185: 0.0002108260871 | M185: 8.990590105e-12 | U185: 0.7475
A186: 1965-11-14T01:30:00 | B186: 4.45 | C186: 0.1 | D186: 0.1 | E186: 0.1012482663 | F186: 0.02272825108 | G186: 0.02272825108 | H186: 0.0232591203 | I186: -3.11226609 | J186: 23.16550651 | K186: 8.126331481 | L186: 0.0001172461553 | M186: 1.583287232e-10 | U186: 0.7525
A187: 1965-12-14T12:00:00 | B187: 4.62 | C187: 0.17 | D187: 0.17 | E187: 0.1712482663 | F187: 0.03749060892 | G187: 0.03749060892 | H187: 0.03802147814 | I187: -3.074775481 | J187: 12.25478683 | K187: 5.315414958 | L187: 3.848178151e-05 | M187: 3.021161766e-09 | U187: 0.7575
A188: 1966-01-13T22:30:00 | B188: 4.61 | C188: -0.01 | D188: 0.01 | E188: 0.008751733703 | F188: -0.002166848085 | G188: 0.002166848085 | H188: 0.001635978864 | I188: -3.076942329 | J188: 12.74708376 | K188: 5.456831703 | L188: 4.12861932e-05 | M188: 1.917194305e-17 | U188: 0.7625
A189: 1966-02-13T09:00:00 | B189: 4.83 | C189: 0.22 | D189: 0.22 | E189: 0.2212482663 | F189: 0.04661861066 | G189: 0.04661861066 | H189: 0.04714947988 | I189: -3.030323718 | J189: 5.016836787 | K189: 2.930578202 | L189: 7.303483504e-06 | M189: 1.098655255e-08 | U189: 0.7675
A190: 1966-03-15T19:30:00 | B190: 4.87 | C190: 0.04 | D190: 0.04 | E190: 0.0412482663 | F190: 0.00824746943 | G190: 0.00824746943 | H190: 0.008778338652 | I190: -3.022076249 | J190: 4.16412485 | K190: 2.588307246 | L190: 5.063895156e-06 | M190: 4.575873254e-13 | U190: 0.7725
A191: 1966-04-15T06:00:00 | B191: 4.75 | C191: -0.12 | D191: 0.12 | E191: 0.1187517337 | F191: -0.02494931905 | G191: 0.02494931905 | H191: 0.02441844983 | I191: -3.047025568 | J191: 7.162673461 | K191: 3.715780931 | L191: 1.440856573e-05 | M191: 2.119866634e-10 | U191: 0.7775
A192: 1966-05-15T16:30:00 | B192: 4.78 | C192: 0.03 | D192: 0.03 | E192: 0.0312482663 | F192: 0.006295928457 | G192: 0.006295928457 | H192: 0.006826797678 | I192: -3.040729639 | J192: 6.282800713 | K192: 3.404882972 | L192: 1.125303061e-05 | M192: 1.012283581e-13 | U192: 0.7825
A193: 1966-06-15T03:00:00 | B193: 4.81 | C193: 0.03 | D193: 0.03 | E193: 0.0312482663 | F193: 0.006256537614 | G193: 0.006256537614 | H193: 0.006787406836 | I193: -3.034473102 | J193: 5.494904647 | K193: 3.113915145 | L193: 8.710048665e-06 | M193: 9.777397888e-14 | U193: 0.7875
A194: 1966-07-15T13:30:00 | B194: 5.02 | C194: 0.21 | D194: 0.21 | E194: 0.2112482663 | F194: 0.04273284959 | G194: 0.04273284959 | H194: 0.04326371881 | I194: -2.991740252 | J194: 1.956894717 | K194: 1.564509869 | L194: 1.04318254e-06 | M194: 6.557572238e-09 | U194: 0.7925
A195: 1966-08-15 | B195: 5.22 | C195: 0.2 | D195: 0.2 | E195: 0.2012482663 | F195: 0.03906746819 | G195: 0.03906746819 | H195: 0.03959833741 | I195: -2.952672784 | J195: 0.6000292026 | K195: 0.711401743 | L195: 5.484787907e-08 | M195: 3.855331363e-09 | U195: 0.7975
A196: 1966-09-14T10:30:00 | B196: 5.18 | C196: -0.04 | D196: 0.04 | E196: 0.0387517337 | F196: -0.007692345623 | G196: 0.007692345623 | H196: 0.007161476402 | I196: -2.96036513 | J196: 0.7749305005 | K196: 0.8436749797 | L196: 1.110711291e-07 | M196: 1.34901069e-13 | U196: 0.8025
A197: 1966-10-14T21:00:00 | B197: 5.01 | C197: -0.17 | D197: 0.17 | E197: 0.1687517337 | F197: -0.03336914117 | G197: 0.03336914117 | H197: 0.03283827195 | I197: -2.993734271 | J197: 2.064253894 | K197: 1.621220456 | L197: 1.173412789e-06 | M197: 1.253954479e-09 | U197: 0.8075
A198: 1966-11-14T07:30:00 | B198: 5.16 | C198: 0.15 | D198: 0.15 | E198: 0.1512482663 | F198: 0.0295006644 | G198: 0.0295006644 | H198: 0.03003153362 | I198: -2.964233606 | J198: 0.8771643205 | K198: 0.9163343606 | L198: 1.538446286e-07 | M198: 7.336097001e-10 | U198: 0.8125
A199: 1966-12-14T18:00:00 | B199: 4.84 | C199: -0.32 | D199: 0.32 | E199: 0.3187517337 | F199: -0.06402185876 | G199: 0.06402185876 | H199: 0.06349098954 | I199: -3.028255465 | J199: 4.791127172 | K199: 2.842006929 | L199: 6.676490616e-06 | M199: 6.550471706e-08 | U199: 0.8175
A200: 1967-01-14T04:30:00 | B200: 4.58 | C200: -0.26 | D200: 0.26 | E200: 0.2587517337 | F200: -0.0552157226 | G200: 0.0552157226 | H200: 0.05468485338 | I200: -3.083471188 | J200: 14.32394091 | K200: 5.898048606 | L200: 5.07861591e-05 | M200: 2.674251895e-08 | U200: 0.8225
A201: 1967-02-13T15:00:00 | B201: 4.63 | C201: 0.05 | D201: 0.05 | E201: 0.0512482663 | F201: 0.01085786997 | G201: 0.01085786997 | H201: 0.01138873919 | I201: -3.072613318 | J201: 11.77843684 | K201: 5.176764855 | L201: 3.584349246e-05 | M201: 2.181995675e-12 | U201: 0.8275
A202: 1967-03-16T01:30:00 | B202: 4.54 | C202: -0.09 | D202: 0.09 | E202: 0.0887517337 | F202: -0.01962985604 | G202: 0.01962985604 | H202: 0.01909898682 | I202: -3.092243174 | J202: 16.67638785 | K202: 6.527316298 | L202: 6.635864834e-05 | M202: 4.853577566e-11 | U202: 0.8325
A203: 1967-04-15T12:00:00 | B203: 4.59 | C203: 0.05 | D203: 0.05 | E203: 0.0512482663 | F203: 0.01095301202 | G203: 0.01095301202 | H203: 0.01148388124 | I203: -3.081290162 | J203: 13.78122387 | K203: 5.748111606 | L203: 4.742899e-05 | M203: 2.293676452e-12 | U203: 0.8375
... 554 more rows
